{"text_format":"1","workbook":"xlsx","n_sheets":18,"sheets":["Contatti Copertina","RI_2_A5","RI_3_A5","RI_4_A5","AIB_2_A5","AIB_3_A5","IR_3_A5","RG_2_A5","RG_3_A5","MR_3_A5","IV_2_A5","RS_2_A5","RS_3_A5","POS_A5","IRA_3_A5","RIV_2_A5","RIV_3_A5","RIV_4_A5"],"not_rendered":{"charts":0,"images":4,"macros":1,"external_links":2,"defined_names":122,"comments":0,"pivot_tables":0},"unopened":[],"bounds":{"document_bytes":16777216,"sheet_cells":100000,"rows_first":2000,"rows_last":500,"rows_between":2000,"halvings":0,"cell_chars":16384,"cell_head_chars":4096},"cells_cut":0,"cells_raw":0,"read":"whole","date_system":"1900"}

{"sheet":"Contatti Copertina","index":0,"n_rows":22,"n_cols":23,"rows_kept":22,"cut":false,"hidden":false,"merged":[[0,0,1,21],[0,22,1,28],[3,11,11,17],[13,1,18,23],[21,2,22,26]]}
[{"$f":"IF(INDEX(INT,1,7)=\"\",INDEX(INT,1,1),INDEX(INT,1,7))","v":"Piano di Emergenza Intercomunale di Protezione Civile"},null,null,null,null,null,null,null,null,null,null,null,null,null,null,null,null,null,null,null,null,null,{"$f":"IF(TIPOP=\"Edizione\",\"Ed. \",\"Rev. \") &  TIPON & \" del \" & TIPOD","v":"Ed. 01 del 04/11/2012"}]
[]
[]
[]
[]
[]
[]
[]
[]
[]
[]
[]
[]
[null,{"$f":"NCOM & \" (\" & PCOM & \")\"","v":"Comuni di Trescore Cremasco (CR)"}]
[]
[]
[]
[]
[]
[]
[]
[null,null,"PRONTUARIO DI EMERGENZA - PROCEDURE"]

{"sheet":"RI_2_A5","index":1,"n_rows":31,"n_cols":16,"rows_kept":31,"cut":false,"hidden":false,"merged":[[30,13,30,14],[30,15,30,28],[26,0,26,12],[26,13,26,28],[27,0,30,2],[27,3,30,12],[27,13,27,14],[27,15,27,28],[28,13,28,14],[28,15,28,28],[29,13,29,14],[29,15,29,28],[11,0,13,28],[1,0,4,2],[1,3,2,28],[3,3,3,10],[3,11,3,12],[3,13,3,28],[4,3,4,10],[4,11,4,28],[10,0,10,1],[10,2,10,28]]}
[]
[{"$f":"_RI1","v":"RI.2"},null,null,{"$f":"[2]RI_2!A6","v":"Rischio Idrogeologico - Fase di Allerta - Codice 2"}]
[]
[null,null,null,"PROCEDURE DA ATTIVARE",null,null,null,null,null,null,null,{"$f":"A2&\".1\"","v":"RI.2.1"},null,"Servizio di Allerta - Monitoraggio"]
[null,null,null,"CARTOGRAFIA DI SUPPORTO",null,null,null,null,null,null,null,{"$f":"INDEX(RI1PAR,1,39)","v":"Tav. 3/D - Stradario Piano di Emergenza"}]
[]
[]
[]
[]
[]
[{"$f":"$L$4","v":"RI.2.1"},null,"POSTAZIONI DI MONITORAGGIO"]
["Dal momento che nell'analisi delle pericolosità non sono emerse particolari criticità per il rischio idrogeologico si considera potenzialmente da sottoporre a monitoraggio l'intero territorio comunale."]
[]
[]
[]
[]
[]
[]
[]
[]
[]
[]
[]
[]
[]
[]
["PROCEDURA",null,null,null,null,null,null,null,null,null,null,null,null,"PROCEDURE OPERATIVE STANDARD DI RIFERIMENTO (POS)"]
[{"$f":"L4","v":"RI.2.1"},null,null,{"$f":"UPPER(N4)","v":"SERVIZIO DI ALLERTA - MONITORAGGIO"},null,null,null,null,null,null,null,null,null,1,null,{"$f":"UPPER(VLOOKUP(N28,POS,2))","v":"MONITORAGGIO"}]
[null,null,null,null,null,null,null,null,null,null,null,null,null,2,null,{"$f":"UPPER(VLOOKUP(N29,POS,2))","v":"PERLUSTRAZIONE"}]
[null,null,null,null,null,null,null,null,null,null,null,null,null,4,null,{"$f":"UPPER(VLOOKUP(N30,POS,2))","v":"INFORMAZIONE DIRETTA ALLA POPOLAZIONE"}]
[null,null,null,null,null,null,null,null,null,null,null,null,null,9,null,{"$f":"UPPER(VLOOKUP(N31,POS,2))","v":"RIMOZIONE OSTACOLI DA ALVEO"}]

{"sheet":"RI_3_A5","index":2,"n_rows":31,"n_cols":16,"rows_kept":31,"cut":false,"hidden":false,"merged":[[29,0,29,2],[29,3,29,12],[29,13,29,14],[29,15,29,28],[30,0,30,2],[30,3,30,12],[30,13,30,14],[30,15,30,28],[27,0,28,2],[27,3,28,12],[27,13,27,14],[27,15,27,28],[28,13,28,14],[28,15,28,28],[21,0,21,1],[21,2,21,28],[22,0,22,6],[22,7,22,28],[26,0,26,12],[26,13,26,28],[16,0,19,6],[16,7,16,28],[17,7,17,28],[18,7,18,28],[19,7,19,28],[13,0,15,6],[13,7,13,28],[14,7,14,28],[15,7,15,28],[12,0,12,1],[12,2,12,28],[9,0,9,1],[9,2,9,28],[10,0,10,6],[1,0,6,2],[1,3,2,28],[3,3,5,10],[3,11,3,12],[3,13,3,28],[4,11,4,12],[4,13,4,28],[5,11,5,12],[5,13,5,28],[6,3,6,10],[6,11,6,28],[10,7,10,28]]}
[]
[{"$f":"_RI2","v":"RI.3"},null,null,{"$f":"[2]RI_3!A6","v":"Rischio Idrogeologico - Fase di Allerta Codice 3 "}]
[]
[null,null,null,"PROCEDURE DA ATTIVARE",null,null,null,null,null,null,null,{"$f":"$A$2&\".1\"","v":"RI.3.1"},null,"Posizionamento Cancelli - Informazione alla Popolazione"]
[null,null,null,null,null,null,null,null,null,null,null,{"$f":"$A$2&\".2\"","v":"RI.3.2"},null,"Attivazione Aree di Emergenza"]
[null,null,null,null,null,null,null,null,null,null,null,{"$f":"$A$2&\".3\"","v":"RI.3.3"},null," Evacuazione"]
[null,null,null,"CARTOGRAFIA DI SUPPORTO",null,null,null,null,null,null,null,{"$f":"INDEX(RI2PAR,1,39)","v":"Tav. 3/D - Stradario Piano di Emergenza"}]
[]
[]
[{"$f":"$L$4","v":"RI.3.1"},null,{"$f":"UPPER(N4)","v":"POSIZIONAMENTO CANCELLI - INFORMAZIONE ALLA POPOLAZIONE"}]
["Ubicazione Intervento",null,null,null,null,null,null,"Non prevedibile a priori. Procedura da attivare su indicazione dell'UCL."]
[]
[{"$f":"$L$5","v":"RI.3.2"},null,{"$f":"\"AREE E EDIFICI DISPONIBILI PER \" & UPPER(N5)","v":"AREE E EDIFICI DISPONIBILI PER ATTIVAZIONE AREE DI EMERGENZA"}]
["Aree di raccolta popolazione",null,null,null,null,null,null,{"$f":"IF(INDEX(RI2RIC,1,1)=\"\",\"\",\"- \"&VLOOKUP(INDEX(RI2RIC,1,1),Ricovero,17))","v":"- Centro Sportivo Comunale - Cod. Stradario 403 - Tendopoli"}]
[null,null,null,null,null,null,null,{"$f":"IF(INDEX(RI2RIC,1,2)=\"\",\"\",\"- \"&VLOOKUP(INDEX(RI2RIC,1,2),Ricovero,17))","v":"- Centro Sportivo Comunale - Cod. Stradario 403 - Ricovero"}]
[null,null,null,null,null,null,null,{"$f":"IF(INDEX(RI2RIC,1,3)=\"\",\"\",\"- \"&VLOOKUP(INDEX(RI2RIC,1,3),Ricovero,17))","v":"- Scuola Secondaria di I Grado \"Manzoni\" - Cod. Stradario 405 - Ricovero"}]
["Aree di ricovero",null,null,null,null,null,null,{"$f":"IF(INDEX(RI2RIC,1,4)=\"\",\"\",\"- \"&VLOOKUP(INDEX(RI2RIC,1,4),Ricovero,17))","v":"- Scuola Primaria Trescore Cremasco - Cod. Stradario 404 - Ricovero"}]
[null,null,null,null,null,null,null,{"$f":"IF(INDEX(RI2RIC,1,5)=\"\",\"\",\"- \"&VLOOKUP(INDEX(RI2RIC,1,5),Ricovero,17))","v":""}]
[null,null,null,null,null,null,null,{"$f":"IF(INDEX(RI2RIC,1,6)=\"\",\"\",\"- \"&VLOOKUP(INDEX(RI17RIC,1,6),Ricovero,17))","v":""}]
[null,null,null,null,null,null,null,{"$f":"IF(INDEX(RI2RIC,1,7)=\"\",\"\",\"- \"&VLOOKUP(INDEX(RI17RIC,1,7),Ricovero,17))","v":""}]
[]
[{"$f":"$L$6","v":"RI.3.3"},null,{"$f":"\"AREE SOGGETTE A \"&UPPER(N6)","v":"AREE SOGGETTE A  EVACUAZIONE"}]
["Ubicazione Intervento",null,null,null,null,null,null,"Non prevedibile a priori. Procedura da attivare su indicazione dell'UCL."]
[]
[]
[]
["PROCEDURA",null,null,null,null,null,null,null,null,null,null,null,null,"PROCEDURE OPERATIVE STANDARD DI RIFERIMENTO (POS)"]
[{"$f":"$L$4","v":"RI.3.1"},null,null,{"$f":"UPPER(N4)","v":"POSIZIONAMENTO CANCELLI - INFORMAZIONE ALLA POPOLAZIONE"},null,null,null,null,null,null,null,null,null,3,null,{"$f":"UPPER(VLOOKUP(N28,POS,2))","v":"PRESIDIO CANCELLI/SUPPORTO VIABILITÀ"}]
[null,null,null,null,null,null,null,null,null,null,null,null,null,4,null,{"$f":"UPPER(VLOOKUP(N29,POS,2))","v":"INFORMAZIONE DIRETTA ALLA POPOLAZIONE"}]
[{"$f":"$L$5","v":"RI.3.2"},null,null,{"$f":"UPPER(N5)","v":"ATTIVAZIONE AREE DI EMERGENZA"},null,null,null,null,null,null,null,null,null,5,null,{"$f":"UPPER(VLOOKUP(N30,POS,2))","v":"ALLESTIMENTO AREA DI RICOVERO"}]
[{"$f":"$L$6","v":"RI.3.3"},null,null,{"$f":"UPPER(N6)","v":" EVACUAZIONE"},null,null,null,null,null,null,null,null,null,7,null,{"$f":"UPPER(VLOOKUP(N31,POS,2))","v":"EVACUAZIONE"}]

{"sheet":"RI_4_A5","index":3,"n_rows":31,"n_cols":16,"rows_kept":31,"cut":false,"hidden":false,"merged":[[30,0,30,2],[30,3,30,12],[30,13,30,14],[30,15,30,28],[26,0,29,2],[26,3,29,12],[26,13,26,14],[26,15,26,28],[27,13,27,14],[27,15,27,28],[28,13,28,14],[28,15,28,28],[29,13,29,14],[29,15,29,28],[17,0,19,6],[17,7,17,28],[18,7,18,28],[19,7,19,28],[25,0,25,12],[25,13,25,28],[10,0,10,1],[10,2,10,28],[11,0,11,6],[11,7,11,28],[16,0,16,1],[16,2,16,28],[1,0,5,2],[1,3,2,28],[3,3,4,10],[3,11,3,12],[3,13,3,28],[4,11,4,12],[4,13,4,28],[5,3,5,10],[5,11,5,28]]}
[]
[{"$f":"_RI3","v":"RI.4"},null,null,{"$f":"[2]RI_4!A6","v":"Rischio Idrogeologico - Fase di Allerta Codice 4"}]
[]
[null,null,null,"PROCEDURE DA ATTIVARE",null,null,null,null,null,null,null,{"$f":"$A$2&\".1\"","v":"RI.4.1"},null,"Interventi in Emergenza per Riparazione e Manutenzione"]
[null,null,null,null,null,null,null,null,null,null,null,{"$f":"$A$2&\".2\"","v":"RI.4.2"},null,"Allestimento Aree di Raduno dei Soccorritori"]
[null,null,null,"Cartografia di Supporto",null,null,null,null,null,null,null,{"$f":"INDEX(RI3PAR,1,39)","v":"Tav. 3/D - Stradario Piano di Emergenza"}]
[]
[]
[]
[]
[{"$f":"$L$4","v":"RI.4.1"},null,{"$f":"UPPER(N4)","v":"INTERVENTI IN EMERGENZA PER RIPARAZIONE E MANUTENZIONE"}]
["Ubicazione Intervento",null,null,null,null,null,null,"Non prevedibile a priori. Procedura da attivare su indicazione dell'UCL."]
[]
[]
[]
[]
[{"$f":"$L$5","v":"RI.4.2"},null,{"$f":"\"AREE E EDIFICI DISPONIBILI PER \" & UPPER(N5)","v":"AREE E EDIFICI DISPONIBILI PER ALLESTIMENTO AREE DI RADUNO DEI SOCCORRITORI"}]
[{"$f":"[2]RI_4!B45","v":"Area di raduno soccorritori"},null,null,null,null,null,null,{"$f":"IF(INDEX(RI2SOC,1,1)=\"\",\"\",\"- \"&VLOOKUP(INDEX(RI2SOC,1,1),Soccorritori,17))","v":"- Centro Sportivo Comunale - Cod. Stradario 403 - Aviosuperficie"}]
[null,null,null,null,null,null,null,{"$f":"IF(INDEX(RI2SOC,1,2)=\"\",\"\",\"- \"&VLOOKUP(INDEX(RI2SOC,1,2),Soccorritori,17))","v":"- Centro Sportivo Comunale - Cod. Stradario 403 - Ammassamento"}]
[null,null,null,null,null,null,null,{"$f":"IF(INDEX(RI2SOC,1,3)=\"\",\"\",\"- \"&VLOOKUP(INDEX(RI2SOC,1,3),Soccorritori,17))","v":""}]
[]
[]
[]
[]
[]
["PROCEDURA",null,null,null,null,null,null,null,null,null,null,null,null,"PROCEDURE OPERATIVE STANDARD DI RIFERIMENTO (POS)"]
[{"$f":"$L$4","v":"RI.4.1"},null,null,{"$f":"UPPER(N4)","v":"INTERVENTI IN EMERGENZA PER RIPARAZIONE E MANUTENZIONE"},null,null,null,null,null,null,null,null,null,8,null,{"$f":"UPPER(VLOOKUP(N27,POS,2))","v":"RIMOZIONE OSTACOLI"}]
[null,null,null,null,null,null,null,null,null,null,null,null,null,9,null,{"$f":"UPPER(VLOOKUP(N28,POS,2))","v":"RIMOZIONE OSTACOLI DA ALVEO"}]
[null,null,null,null,null,null,null,null,null,null,null,null,null,10,null,{"$f":"UPPER(VLOOKUP(N29,POS,2))","v":"PRESERVAZIONE ARGINI"}]
[null,null,null,null,null,null,null,null,null,null,null,null,null,11,null,{"$f":"UPPER(VLOOKUP(N30,POS,2))","v":"FRANA"}]
[{"$f":"$L$5","v":"RI.4.2"},null,null,"AREE DI RADUNO DEI SOCCORRITORI",null,null,null,null,null,null,null,null,null,6,null,{"$f":"UPPER(VLOOKUP(N31,POS,2))","v":"ALLESTIMENTO AREA DI AMMASSAMENTO SOCCORSI"}]

{"sheet":"AIB_2_A5","index":4,"n_rows":31,"n_cols":16,"rows_kept":31,"cut":false,"hidden":false,"merged":[[29,0,30,2],[29,3,30,12],[29,13,29,14],[29,15,29,28],[30,13,30,14],[30,15,30,28],[12,0,12,1],[12,2,12,28],[13,0,14,6],[13,7,14,28],[28,0,28,12],[28,13,28,28],[1,0,4,2],[1,3,2,28],[3,3,3,10],[3,11,3,12],[3,13,3,28],[4,3,4,10],[4,11,4,28]]}
[]
[{"$f":"_AIB2","v":"AIB.2"},null,null,"Rischio Incendio Boschivo - Fase di Allarme"]
[]
[null,null,null,"PROCEDURE DA ATTIVARE",null,null,null,null,null,null,null,{"$f":"$A$2&\".1\"","v":"AIB.2.1"},null,"Posizionamento Cancelli - Informazione alla Popolazione"]
[null,null,null,"CARTOGRAFIA DI SUPPORTO",null,null,null,null,null,null,null,{"$f":"INDEX(AIB2PAR,1,39)","v":"Tav. 3/D - Stradario Piano di Emergenza"}]
[]
[]
[]
[]
[]
[]
[]
[{"$f":"$L$4","v":"AIB.2.1"},null,{"$f":"UPPER(N4)","v":"POSIZIONAMENTO CANCELLI - INFORMAZIONE ALLA POPOLAZIONE"}]
["Ubicazione Intervento",null,null,null,null,null,null,"Non prevedibile a priori. Procedura da attivare su indicazione dell'UCL."]
[]
[]
[]
[]
[]
[]
[]
[]
[]
[]
[]
[]
[]
[]
["PROCEDURA",null,null,null,null,null,null,null,null,null,null,null,null,"PROCEDURE OPERATIVE STANDARD DI RIFERIMENTO (POS)"]
[{"$f":"$L$4","v":"AIB.2.1"},null,null,{"$f":"UPPER(N4)","v":"POSIZIONAMENTO CANCELLI - INFORMAZIONE ALLA POPOLAZIONE"},null,null,null,null,null,null,null,null,null,3,null,{"$f":"UPPER(VLOOKUP(N30,POS,2))","v":"PRESIDIO CANCELLI/SUPPORTO VIABILITÀ"}]
[null,null,null,null,null,null,null,null,null,null,null,null,null,4,null,{"$f":"UPPER(VLOOKUP(N31,POS,2))","v":"INFORMAZIONE DIRETTA ALLA POPOLAZIONE"}]

{"sheet":"AIB_3_A5","index":5,"n_rows":31,"n_cols":16,"rows_kept":31,"cut":false,"hidden":false,"merged":[[29,0,29,2],[29,3,29,12],[29,13,29,14],[29,15,29,28],[30,0,30,2],[30,3,30,12],[30,13,30,14],[30,15,30,28],[27,0,28,2],[27,3,28,12],[27,13,27,14],[27,15,27,28],[28,13,28,14],[28,15,28,28],[20,0,20,1],[20,2,20,28],[21,0,21,6],[21,7,21,28],[26,0,26,12],[26,13,26,28],[15,0,18,6],[15,7,15,28],[16,7,16,28],[17,7,17,28],[18,7,18,28],[12,0,14,6],[12,7,12,28],[13,7,13,28],[14,7,14,28],[11,0,11,1],[11,2,11,28],[8,0,8,1],[8,2,8,28],[9,0,9,6],[1,0,6,2],[1,3,2,28],[3,3,5,10],[3,11,3,12],[3,13,3,28],[4,11,4,12],[4,13,4,28],[5,11,5,12],[5,13,5,28],[6,3,6,10],[6,11,6,28],[9,7,9,28]]}
[]
[{"$f":"_AIB3","v":"AIB.3"},null,null,"Rischio Incendio Boschivo - Fase di Emergenza"]
[]
[null,null,null,"PROCEDURE DA ATTIVARE",null,null,null,null,null,null,null,{"$f":"$A$2&\".1\"","v":"AIB.3.1"},null,"Posizionamento Cancelli - Informazione alla Popolazione"]
[null,null,null,null,null,null,null,null,null,null,null,{"$f":"$A$2&\".2\"","v":"AIB.3.2"},null,"Attivazione Aree di Emergenza"]
[null,null,null,null,null,null,null,null,null,null,null,{"$f":"$A$2&\".3\"","v":"AIB.3.3"},null," Evacuazione"]
[null,null,null,"CARTOGRAFIA DI SUPPORTO",null,null,null,null,null,null,null,{"$f":"INDEX(AIB3PAR,1,39)","v":"Tav. 3/D - Stradario Piano di Emergenza"}]
[]
[{"$f":"$L$4","v":"AIB.3.1"},null,{"$f":"UPPER(N4)","v":"POSIZIONAMENTO CANCELLI - INFORMAZIONE ALLA POPOLAZIONE"}]
["Ubicazione Intervento",null,null,null,null,null,null,"Non prevedibile a priori. Procedura da attivare su indicazione dell'UCL."]
[]
[{"$f":"$L$5","v":"AIB.3.2"},null,{"$f":"\"AREE E EDIFICI DISPONIBILI PER \" & UPPER(N5)","v":"AREE E EDIFICI DISPONIBILI PER ATTIVAZIONE AREE DI EMERGENZA"}]
["Aree di raccolta popolazione",null,null,null,null,null,null,{"$f":"IF(INDEX(AIB3RIC,1,1)=\"\",\"\",\"- \"&VLOOKUP(INDEX(AIB3RIC,1,1),Ricovero,17))","v":"- Centro Sportivo Comunale - Cod. Stradario 403 - Tendopoli"}]
[null,null,null,null,null,null,null,{"$f":"IF(INDEX(AIB3RIC,1,2)=\"\",\"\",\"- \"&VLOOKUP(INDEX(AIB3RIC,1,2),Ricovero,17))","v":"- Centro Sportivo Comunale - Cod. Stradario 403 - Ricovero"}]
[null,null,null,null,null,null,null,{"$f":"IF(INDEX(AIB3RIC,1,3)=\"\",\"\",\"- \"&VLOOKUP(INDEX(AIB3RIC,1,3),Ricovero,17))","v":"- Scuola Secondaria di I Grado \"Manzoni\" - Cod. Stradario 405 - Ricovero"}]
["Aree di ricovero",null,null,null,null,null,null,{"$f":"IF(INDEX(AIB3RIC,1,4)=\"\",\"\",\"- \"&VLOOKUP(INDEX(AIB3RIC,1,4),Ricovero,17))","v":"- Scuola Primaria Trescore Cremasco - Cod. Stradario 404 - Ricovero"}]
[null,null,null,null,null,null,null,{"$f":"IF(INDEX(AIB3RIC,1,5)=\"\",\"\",\"- \"&VLOOKUP(INDEX(AIB3RIC,1,5),Ricovero,17))","v":""}]
[]
[]
[]
[{"$f":"$L$6","v":"AIB.3.3"},null,{"$f":"\"AREE SOGGETTE A \"&UPPER(N6)","v":"AREE SOGGETTE A  EVACUAZIONE"}]
["Ubicazione Intervento",null,null,null,null,null,null,"Non prevedibile a priori. Procedura da attivare su indicazione dell'UCL."]
[]
[]
[]
[]
["PROCEDURA",null,null,null,null,null,null,null,null,null,null,null,null,"PROCEDURE OPERATIVE STANDARD DI RIFERIMENTO (POS)"]
[{"$f":"$L$4","v":"AIB.3.1"},null,null,{"$f":"UPPER(N4)","v":"POSIZIONAMENTO CANCELLI - INFORMAZIONE ALLA POPOLAZIONE"},null,null,null,null,null,null,null,null,null,3,null,{"$f":"UPPER(VLOOKUP(N28,POS,2))","v":"PRESIDIO CANCELLI/SUPPORTO VIABILITÀ"}]
[null,null,null,null,null,null,null,null,null,null,null,null,null,4,null,{"$f":"UPPER(VLOOKUP(N29,POS,2))","v":"INFORMAZIONE DIRETTA ALLA POPOLAZIONE"}]
[{"$f":"$L$5","v":"AIB.3.2"},null,null,{"$f":"UPPER(N5)","v":"ATTIVAZIONE AREE DI EMERGENZA"},null,null,null,null,null,null,null,null,null,5,null,{"$f":"UPPER(VLOOKUP(N30,POS,2))","v":"ALLESTIMENTO AREA DI RICOVERO"}]
[{"$f":"$L$6","v":"AIB.3.3"},null,null,{"$f":"UPPER(N6)","v":" EVACUAZIONE"},null,null,null,null,null,null,null,null,null,7,null,{"$f":"UPPER(VLOOKUP(N31,POS,2))","v":"EVACUAZIONE"}]

{"sheet":"IR_3_A5","index":6,"n_rows":31,"n_cols":16,"rows_kept":31,"cut":false,"hidden":false,"merged":[[30,0,30,2],[30,3,30,12],[30,13,30,14],[30,15,30,28],[28,0,28,2],[28,3,28,12],[28,13,28,14],[28,15,28,28],[29,0,29,2],[29,3,29,12],[29,13,29,14],[29,15,29,28],[22,0,22,6],[22,7,22,28],[25,0,25,12],[25,13,25,28],[26,0,27,2],[26,3,27,12],[26,13,26,14],[26,15,26,28],[27,13,27,14],[27,15,27,28],[20,0,20,6],[20,7,20,28],[21,0,21,1],[21,2,21,28],[19,0,19,1],[19,2,19,28],[9,0,9,1],[1,0,7,2],[1,3,2,28],[3,3,6,10],[3,11,3,12],[3,13,3,28],[4,11,4,12],[4,13,4,28],[5,11,5,12],[5,13,5,28],[6,11,6,12],[6,13,6,28],[7,3,7,10],[7,11,7,28],[9,2,9,28],[16,7,16,28],[17,7,17,28],[18,7,18,28],[10,0,10,6],[10,7,10,28],[11,0,11,1],[11,2,11,28],[12,0,14,6],[12,7,12,28],[13,7,13,28],[14,7,14,28],[15,0,18,6],[15,7,15,28]]}
[]
[{"$f":"_IRI3","v":"IR.3"},null,null,"Rischio di Incidente Rilevante/Trasporto di Sostanze Pericolose"]
[]
[null,null,null,"PROCEDURE DA ATTIVARE",null,null,null,null,null,null,null,{"$f":"$A$2&\".1\"","v":"IR.3.1"},null,"Posizionamento Cancelli - Informazione alla Popolazione"]
[null,null,null,null,null,null,null,null,null,null,null,{"$f":"$A$2&\".2\"","v":"IR.3.2"},null,"Attivazione Aree di Emergenza"]
[null,null,null,null,null,null,null,null,null,null,null,{"$f":"$A$2&\".3\"","v":"IR.3.3"},null," Evacuazione"]
[null,null,null,null,null,null,null,null,null,null,null,{"$f":"$A$2&\".4\"","v":"IR.3.4"},null,"Revoca dello stato di emergenza "]
[null,null,null,"CARTOGRAFIA DI SUPPORTO",null,null,null,null,null,null,null,{"$f":"INDEX(IR3PAR,1,39)","v":"Tav. 3/D - Stradario Piano di Emergenza"}]
[]
[{"$f":"$L$4","v":"IR.3.1"},null,{"$f":"UPPER(N4)","v":"POSIZIONAMENTO CANCELLI - INFORMAZIONE ALLA POPOLAZIONE"}]
["Ubicazione Intervento",null,null,null,null,null,null,"Non prevedibile a priori. Procedura da attivare su indicazione dell'UCL."]
[{"$f":"$L$5","v":"IR.3.2"},null,{"$f":"\"AREE E EDIFICI DISPONIBILI PER \" & UPPER(N5)","v":"AREE E EDIFICI DISPONIBILI PER ATTIVAZIONE AREE DI EMERGENZA"}]
["Aree di raccolta popolazione",null,null,null,null,null,null,{"$f":"IF(INDEX(IR3RIC,1,1)=\"\",\"\",\"- \"&VLOOKUP(INDEX(IR3RIC,1,1),Ricovero,17))","v":"- Centro Sportivo Comunale - Cod. Stradario 403 - Tendopoli"}]
[null,null,null,null,null,null,null,{"$f":"IF(INDEX(IR3RIC,1,2)=\"\",\"\",\"- \"&VLOOKUP(INDEX(IR3RIC,1,2),Ricovero,17))","v":"- Centro Sportivo Comunale - Cod. Stradario 403 - Ricovero"}]
[null,null,null,null,null,null,null,{"$f":"IF(INDEX(IR3RIC,1,3)=\"\",\"\",\"- \"&VLOOKUP(INDEX(IR3RIC,1,3),Ricovero,17))","v":"- Scuola Secondaria di I Grado \"Manzoni\" - Cod. Stradario 405 - Ricovero"}]
["Aree di ricovero",null,null,null,null,null,null,{"$f":"IF(INDEX(IR3RIC,1,4)=\"\",\"\",\"- \"&VLOOKUP(INDEX(IR3RIC,1,4),Ricovero,17))","v":"- Scuola Primaria Trescore Cremasco - Cod. Stradario 404 - Ricovero"}]
[null,null,null,null,null,null,null,{"$f":"IF(INDEX(IR3RIC,1,5)=\"\",\"\",\"- \"&VLOOKUP(INDEX(IR3RIC,1,5),Ricovero,17))","v":""}]
[]
[]
[{"$f":"$L$6","v":"IR.3.3"},null,{"$f":"\"AREE SOGGETTE A \"&UPPER(N6)","v":"AREE SOGGETTE A  EVACUAZIONE"}]
["Ubicazione Intervento",null,null,null,null,null,null,"Non prevedibile a priori. Procedura da attivare su indicazione dell'UCL."]
[{"$f":"$L$7","v":"IR.3.4"},null,{"$f":"\"AREE DOVE ESEGUIRE LA \"&UPPER(N7)","v":"AREE DOVE ESEGUIRE LA REVOCA DELLO STATO DI EMERGENZA "}]
["Ubicazione Intervento",null,null,null,null,null,null,"Area interessata dalle conseguenze dell'incidente."]
[]
[]
["PROCEDURA",null,null,null,null,null,null,null,null,null,null,null,null,"PROCEDURE OPERATIVE STANDARD DI RIFERIMENTO (POS)"]
[{"$f":"$L$4","v":"IR.3.1"},null,null,{"$f":"UPPER(N4)","v":"POSIZIONAMENTO CANCELLI - INFORMAZIONE ALLA POPOLAZIONE"},null,null,null,null,null,null,null,null,null,3,null,{"$f":"UPPER(VLOOKUP(N27,POS,2))","v":"PRESIDIO CANCELLI/SUPPORTO VIABILITÀ"}]
[null,null,null,null,null,null,null,null,null,null,null,null,null,4,null,{"$f":"UPPER(VLOOKUP(N28,POS,2))","v":"INFORMAZIONE DIRETTA ALLA POPOLAZIONE"}]
[{"$f":"$L$5","v":"IR.3.2"},null,null,{"$f":"UPPER(N5)","v":"ATTIVAZIONE AREE DI EMERGENZA"},null,null,null,null,null,null,null,null,null,5,null,{"$f":"UPPER(VLOOKUP(N29,POS,2))","v":"ALLESTIMENTO AREA DI RICOVERO"}]
[{"$f":"$L$6","v":"IR.3.3"},null,null,{"$f":"UPPER(N6)","v":" EVACUAZIONE"},null,null,null,null,null,null,null,null,null,7,null,{"$f":"UPPER(VLOOKUP(N30,POS,2))","v":"EVACUAZIONE"}]
[{"$f":"$L$7","v":"IR.3.4"},null,null,{"$f":"UPPER(N7)","v":"REVOCA DELLO STATO DI EMERGENZA "},null,null,null,null,null,null,null,null,null,4,null,{"$f":"UPPER(VLOOKUP(N31,POS,2))","v":"INFORMAZIONE DIRETTA ALLA POPOLAZIONE"}]

{"sheet":"RG_2_A5","index":7,"n_rows":31,"n_cols":16,"rows_kept":31,"cut":false,"hidden":false,"merged":[[29,0,29,2],[29,3,29,12],[29,13,29,14],[29,15,29,28],[30,0,30,2],[30,3,30,12],[30,13,30,14],[30,15,30,28],[27,0,28,2],[27,3,28,12],[27,13,27,14],[27,15,27,28],[28,13,28,14],[28,15,28,28],[22,0,22,1],[22,2,22,28],[23,0,23,6],[23,7,23,28],[26,0,26,12],[26,13,26,28],[16,0,19,6],[16,7,16,28],[17,7,17,28],[18,7,18,28],[19,7,19,28],[13,0,15,6],[13,7,13,28],[14,7,14,28],[15,7,15,28],[12,0,12,1],[12,2,12,28],[8,0,8,1],[8,2,8,28],[9,0,9,6],[1,0,6,2],[1,3,2,28],[3,3,5,10],[3,11,3,12],[3,13,3,28],[4,11,4,12],[4,13,4,28],[5,11,5,12],[5,13,5,28],[6,3,6,10],[6,11,6,28],[9,7,9,28]]}
[]
[{"$f":"_RG2","v":"RG.2"},null,null,"Rischio di Incidente Rete Metano - Fase di Allarme"]
[]
[null,null,null,"PROCEDURE DA ATTIVARE",null,null,null,null,null,null,null,{"$f":"$A$2&\".1\"","v":"RG.2.1"},null,"Posizionamento Cancelli - Informazione alla Popolazione"]
[null,null,null,null,null,null,null,null,null,null,null,{"$f":"$A$2&\".2\"","v":"RG.2.2"},null,"Attivazione Aree di Emergenza"]
[null,null,null,null,null,null,null,null,null,null,null,{"$f":"$A$2&\".3\"","v":"RG.2.3"},null," Evacuazione"]
[null,null,null,"CARTOGRAFIA DI SUPPORTO",null,null,null,null,null,null,null,{"$f":"INDEX(RG2PAR,1,39)","v":"Tav. 3/D - Stradario Piano di Emergenza"}]
[]
[{"$f":"$L$4","v":"RG.2.1"},null,{"$f":"UPPER(N4)","v":"POSIZIONAMENTO CANCELLI - INFORMAZIONE ALLA POPOLAZIONE"}]
["Ubicazione Intervento",null,null,null,null,null,null,"Non prevedibile a priori. Procedura da attivare su indicazione dell'UCL."]
[]
[]
[{"$f":"$L$5","v":"RG.2.2"},null,{"$f":"\"AREE E EDIFICI DISPONIBILI PER \" & UPPER(N5)","v":"AREE E EDIFICI DISPONIBILI PER ATTIVAZIONE AREE DI EMERGENZA"}]
["Aree di raccolta popolazione",null,null,null,null,null,null,{"$f":"IF(INDEX(RG2RIC,1,1)=\"\",\"\",\"- \"&VLOOKUP(INDEX(RG2RIC,1,1),Ricovero,17))","v":"- Centro Sportivo Comunale - Cod. Stradario 403 - Tendopoli"}]
[null,null,null,null,null,null,null,{"$f":"IF(INDEX(RG2RIC,1,2)=\"\",\"\",\"- \"&VLOOKUP(INDEX(RG2RIC,1,2),Ricovero,17))","v":"- Centro Sportivo Comunale - Cod. Stradario 403 - Ricovero"}]
[null,null,null,null,null,null,null,{"$f":"IF(INDEX(RG2RIC,1,3)=\"\",\"\",\"- \"&VLOOKUP(INDEX(RG2RIC,1,3),Ricovero,17))","v":"- Scuola Secondaria di I Grado \"Manzoni\" - Cod. Stradario 405 - Ricovero"}]
["Aree di ricovero",null,null,null,null,null,null,{"$f":"IF(INDEX(RG2RIC,1,4)=\"\",\"\",\"- \"&VLOOKUP(INDEX(RG2RIC,1,4),Ricovero,17))","v":"- Scuola Primaria Trescore Cremasco - Cod. Stradario 404 - Ricovero"}]
[null,null,null,null,null,null,null,{"$f":"IF(INDEX(RG2RIC,1,5)=\"\",\"\",\"- \"&VLOOKUP(INDEX(RG2RIC,1,5),Ricovero,17))","v":""}]
[null,null,null,null,null,null,null,{"$f":"IF(INDEX(RI2RIC,1,6)=\"\",\"\",\"- \"&VLOOKUP(INDEX(RI17RIC,1,6),Ricovero,17))","v":""}]
[null,null,null,null,null,null,null,{"$f":"IF(INDEX(RI2RIC,1,7)=\"\",\"\",\"- \"&VLOOKUP(INDEX(RI17RIC,1,7),Ricovero,17))","v":""}]
[]
[]
[{"$f":"$L$6","v":"RG.2.3"},null,{"$f":"\"AREE SOGGETTE A \"&UPPER(N6)","v":"AREE SOGGETTE A  EVACUAZIONE"}]
["Ubicazione Intervento",null,null,null,null,null,null,"Non prevedibile a priori. Procedura da attivare su indicazione dell'UCL."]
[]
[]
["PROCEDURA",null,null,null,null,null,null,null,null,null,null,null,null,"PROCEDURE OPERATIVE STANDARD DI RIFERIMENTO (POS)"]
[{"$f":"$L$4","v":"RG.2.1"},null,null,{"$f":"UPPER(N4)","v":"POSIZIONAMENTO CANCELLI - INFORMAZIONE ALLA POPOLAZIONE"},null,null,null,null,null,null,null,null,null,3,null,{"$f":"UPPER(VLOOKUP(N28,POS,2))","v":"PRESIDIO CANCELLI/SUPPORTO VIABILITÀ"}]
[null,null,null,null,null,null,null,null,null,null,null,null,null,4,null,{"$f":"UPPER(VLOOKUP(N29,POS,2))","v":"INFORMAZIONE DIRETTA ALLA POPOLAZIONE"}]
[{"$f":"$L$5","v":"RG.2.2"},null,null,{"$f":"UPPER(N5)","v":"ATTIVAZIONE AREE DI EMERGENZA"},null,null,null,null,null,null,null,null,null,5,null,{"$f":"UPPER(VLOOKUP(N30,POS,2))","v":"ALLESTIMENTO AREA DI RICOVERO"}]
[{"$f":"$L$6","v":"RG.2.3"},null,null,{"$f":"UPPER(N6)","v":" EVACUAZIONE"},null,null,null,null,null,null,null,null,null,7,null,{"$f":"UPPER(VLOOKUP(N31,POS,2))","v":"EVACUAZIONE"}]

{"sheet":"RG_3_A5","index":8,"n_rows":31,"n_cols":16,"rows_kept":31,"cut":false,"hidden":false,"merged":[[29,0,29,2],[29,3,29,12],[29,13,29,14],[29,15,29,28],[30,0,30,2],[30,3,30,12],[30,13,30,14],[30,15,30,28],[27,0,28,2],[27,3,28,12],[27,13,27,14],[27,15,27,28],[28,13,28,14],[28,15,28,28],[22,0,22,1],[22,2,22,28],[23,0,23,6],[23,7,23,28],[26,0,26,12],[26,13,26,28],[16,0,19,6],[16,7,16,28],[17,7,17,28],[18,7,18,28],[19,7,19,28],[13,0,15,6],[13,7,13,28],[14,7,14,28],[15,7,15,28],[12,0,12,1],[12,2,12,28],[8,0,8,1],[8,2,8,28],[9,0,9,6],[1,0,6,2],[1,3,2,28],[3,3,5,10],[3,11,3,12],[3,13,3,28],[4,11,4,12],[4,13,4,28],[5,11,5,12],[5,13,5,28],[6,3,6,10],[6,11,6,28],[9,7,9,28]]}
[]
[{"$f":"_RG3","v":"RG.3"},null,null,"Rischio di Incidente Rete Metano - Fase di Emergenza"]
[]
[null,null,null,"PROCEDURE DA ATTIVARE",null,null,null,null,null,null,null,{"$f":"$A$2&\".1\"","v":"RG.3.1"},null,"Posizionamento Cancelli - Informazione alla Popolazione"]
[null,null,null,null,null,null,null,null,null,null,null,{"$f":"$A$2&\".2\"","v":"RG.3.2"},null,"Attivazione Aree di Emergenza"]
[null,null,null,null,null,null,null,null,null,null,null,{"$f":"$A$2&\".3\"","v":"RG.3.3"},null," Evacuazione"]
[null,null,null,"CARTOGRAFIA DI SUPPORTO",null,null,null,null,null,null,null,{"$f":"INDEX(RG3PAR,1,39)","v":"Tav. 3/D - Stradario Piano di Emergenza"}]
[]
[{"$f":"$L$4","v":"RG.3.1"},null,{"$f":"UPPER(N4)","v":"POSIZIONAMENTO CANCELLI - INFORMAZIONE ALLA POPOLAZIONE"}]
["Ubicazione Intervento",null,null,null,null,null,null,"Non prevedibile a priori. Procedura da attivare su indicazione dell'UCL."]
[]
[]
[{"$f":"$L$5","v":"RG.3.2"},null,{"$f":"\"AREE E EDIFICI DISPONIBILI PER \" & UPPER(N5)","v":"AREE E EDIFICI DISPONIBILI PER ATTIVAZIONE AREE DI EMERGENZA"}]
["Aree di raccolta popolazione",null,null,null,null,null,null,{"$f":"IF(INDEX(RG3RIC,1,1)=\"\",\"\",\"- \"&VLOOKUP(INDEX(RG3RIC,1,1),Ricovero,17))","v":"- Centro Sportivo Comunale - Cod. Stradario 403 - Tendopoli"}]
[null,null,null,null,null,null,null,{"$f":"IF(INDEX(RG3RIC,1,2)=\"\",\"\",\"- \"&VLOOKUP(INDEX(RG3RIC,1,2),Ricovero,17))","v":"- Centro Sportivo Comunale - Cod. Stradario 403 - Ricovero"}]
[null,null,null,null,null,null,null,{"$f":"IF(INDEX(RG3RIC,1,3)=\"\",\"\",\"- \"&VLOOKUP(INDEX(RG3RIC,1,3),Ricovero,17))","v":"- Scuola Secondaria di I Grado \"Manzoni\" - Cod. Stradario 405 - Ricovero"}]
["Aree di ricovero",null,null,null,null,null,null,{"$f":"IF(INDEX(RG3RIC,1,4)=\"\",\"\",\"- \"&VLOOKUP(INDEX(RG3RIC,1,4),Ricovero,17))","v":"- Scuola Primaria Trescore Cremasco - Cod. Stradario 404 - Ricovero"}]
[null,null,null,null,null,null,null,{"$f":"IF(INDEX(RG3RIC,1,5)=\"\",\"\",\"- \"&VLOOKUP(INDEX(RG3RIC,1,5),Ricovero,17))","v":""}]
[]
[]
[]
[]
[{"$f":"$L$6","v":"RG.3.3"},null,{"$f":"\"AREE SOGGETTE A \"&UPPER(N6)","v":"AREE SOGGETTE A  EVACUAZIONE"}]
["Ubicazione Intervento",null,null,null,null,null,null,"Non prevedibile a priori. Procedura da attivare su indicazione dell'UCL."]
[]
[]
["PROCEDURA",null,null,null,null,null,null,null,null,null,null,null,null,"PROCEDURE OPERATIVE STANDARD DI RIFERIMENTO (POS)"]
[{"$f":"$L$4","v":"RG.3.1"},null,null,{"$f":"UPPER(N4)","v":"POSIZIONAMENTO CANCELLI - INFORMAZIONE ALLA POPOLAZIONE"},null,null,null,null,null,null,null,null,null,3,null,{"$f":"UPPER(VLOOKUP(N28,POS,2))","v":"PRESIDIO CANCELLI/SUPPORTO VIABILITÀ"}]
[null,null,null,null,null,null,null,null,null,null,null,null,null,4,null,{"$f":"UPPER(VLOOKUP(N29,POS,2))","v":"INFORMAZIONE DIRETTA ALLA POPOLAZIONE"}]
[{"$f":"$L$5","v":"RG.3.2"},null,null,{"$f":"UPPER(N5)","v":"ATTIVAZIONE AREE DI EMERGENZA"},null,null,null,null,null,null,null,null,null,5,null,{"$f":"UPPER(VLOOKUP(N30,POS,2))","v":"ALLESTIMENTO AREA DI RICOVERO"}]
[{"$f":"$L$6","v":"RG.3.3"},null,null,{"$f":"UPPER(N6)","v":" EVACUAZIONE"},null,null,null,null,null,null,null,null,null,7,null,{"$f":"UPPER(VLOOKUP(N31,POS,2))","v":"EVACUAZIONE"}]

{"sheet":"MR_3_A5","index":9,"n_rows":32,"n_cols":16,"rows_kept":32,"cut":false,"hidden":false,"merged":[[31,0,31,2],[31,3,31,12],[31,13,31,14],[31,15,31,28],[29,0,29,2],[29,3,29,12],[29,13,29,14],[29,15,29,28],[30,0,30,2],[30,3,30,12],[30,13,30,14],[30,15,30,28],[24,0,24,6],[24,7,24,28],[26,0,26,12],[26,13,26,28],[27,0,28,2],[27,3,28,12],[27,13,27,14],[27,15,27,28],[28,13,28,14],[28,15,28,28],[23,0,23,1],[23,2,23,28],[15,0,15,1],[15,2,15,28],[16,0,18,6],[16,7,16,28],[17,7,17,28],[18,7,18,28],[19,0,22,6],[19,7,19,28],[20,7,20,28],[21,7,21,28],[22,7,22,28],[9,2,9,28],[11,0,11,1],[11,2,11,28],[12,0,14,6],[12,7,12,28],[13,7,13,28],[14,7,14,28],[10,0,10,6],[10,7,10,28],[9,0,9,1],[1,0,7,2],[1,3,2,28],[3,3,6,10],[3,11,3,12],[3,13,3,28],[4,11,4,12],[4,13,4,28],[5,11,5,12],[5,13,5,28],[6,11,6,12],[6,13,6,28],[7,3,7,10],[7,11,7,28]]}
[]
[{"$f":"_MRI3","v":"MR.3"},null,null,"Rischio Dispersione Materiale Radioattivo"]
[]
[null,null,null,"PROCEDURE DA ATTIVARE",null,null,null,null,null,null,null,{"$f":"$A$2&\".1\"","v":"MR.3.1"},null,"Posizionamento Cancelli - Informazione alla Popolazione"]
[null,null,null,null,null,null,null,null,null,null,null,{"$f":"$A$2&\".2\"","v":"MR.3.2"},null,"Allestimento Aree di Raduno dei Soccorritori"]
[null,null,null,null,null,null,null,null,null,null,null,{"$f":"$A$2&\".3\"","v":"MR.3.3"},null,"Attivazione Aree di Emergenza"]
[null,null,null,null,null,null,null,null,null,null,null,{"$f":"$A$2&\".4\"","v":"MR.3.4"},null," Evacuazione"]
[null,null,null,"CARTOGRAFIA DI SUPPORTO",null,null,null,null,null,null,null,{"$f":"INDEX(MR3PAR,1,39)","v":"Tav. 3/D - Stradario Piano di Emergenza"}]
[]
[{"$f":"$L$4","v":"MR.3.1"},null,{"$f":"UPPER(N4)","v":"POSIZIONAMENTO CANCELLI - INFORMAZIONE ALLA POPOLAZIONE"}]
["Ubicazione Intervento",null,null,null,null,null,null,"Non prevedibile a priori. Procedura da attivare su indicazione dell'UCL."]
[{"$f":"$L$5","v":"MR.3.2"},null,{"$f":"\"AREE E EDIFICI DISPONIBILI PER \" & UPPER(N5)","v":"AREE E EDIFICI DISPONIBILI PER ALLESTIMENTO AREE DI RADUNO DEI SOCCORRITORI"}]
["Area di raduno soccorritori",null,null,null,null,null,null,{"$f":"IF(INDEX(RI2SOC,1,1)=\"\",\"\",\"- \"&VLOOKUP(INDEX(RI2SOC,1,1),Soccorritori,17))","v":"- Centro Sportivo Comunale - Cod. Stradario 403 - Aviosuperficie"}]
[null,null,null,null,null,null,null,{"$f":"IF(INDEX(RI2SOC,1,2)=\"\",\"\",\"- \"&VLOOKUP(INDEX(RI2SOC,1,2),Soccorritori,17))","v":"- Centro Sportivo Comunale - Cod. Stradario 403 - Ammassamento"}]
[null,null,null,null,null,null,null,{"$f":"IF(INDEX(RI2SOC,1,3)=\"\",\"\",\"- \"&VLOOKUP(INDEX(RI2SOC,1,3),Soccorritori,17))","v":""}]
[{"$f":"$L$6","v":"MR.3.3"},null,{"$f":"\"AREE DISPONIBILI PER\" & UPPER(N6)","v":"AREE DISPONIBILI PERATTIVAZIONE AREE DI EMERGENZA"}]
["Aree di raccolta popolazione",null,null,null,null,null,null,{"$f":"IF(INDEX(MR3RIC,1,1)=\"\",\"\",\"- \"&VLOOKUP(INDEX(MR3RIC,1,1),Ricovero,17))","v":"- Centro Sportivo Comunale - Cod. Stradario 403 - Tendopoli"}]
[null,null,null,null,null,null,null,{"$f":"IF(INDEX(MR3RIC,1,2)=\"\",\"\",\"- \"&VLOOKUP(INDEX(MR3RIC,1,2),Ricovero,17))","v":"- Centro Sportivo Comunale - Cod. Stradario 403 - Ricovero"}]
[null,null,null,null,null,null,null,{"$f":"IF(INDEX(MR3RIC,1,3)=\"\",\"\",\"- \"&VLOOKUP(INDEX(MR3RIC,1,3),Ricovero,17))","v":"- Scuola Secondaria di I Grado \"Manzoni\" - Cod. Stradario 405 - Ricovero"}]
["Aree di ricovero",null,null,null,null,null,null,{"$f":"IF(INDEX(MR3RIC,1,4)=\"\",\"\",\"- \"&VLOOKUP(INDEX(MR3RIC,1,4),Ricovero,17))","v":"- Scuola Primaria Trescore Cremasco - Cod. Stradario 404 - Ricovero"}]
[null,null,null,null,null,null,null,{"$f":"IF(INDEX(MR3RIC,1,5)=\"\",\"\",\"- \"&VLOOKUP(INDEX(MR3RIC,1,5),Ricovero,17))","v":""}]
[null,null,null,null,null,null,null,{"$f":"IF(INDEX(MR3RIC,1,6)=\"\",\"\",\"- \"&VLOOKUP(INDEX(MR3RIC,1,6),Ricovero,17))","v":""}]
[null,null,null,null,null,null,null,{"$f":"IF(INDEX(MR3RIC,1,7)=\"\",\"\",\"- \"&VLOOKUP(INDEX(MR3RIC,1,7),Ricovero,17))","v":""}]
[{"$f":"$L$7","v":"MR.3.4"},null,{"$f":"\"AREE SOGGETTE A \"&UPPER(N7)","v":"AREE SOGGETTE A  EVACUAZIONE"}]
["Ubicazione Intervento",null,null,null,null,null,null,"Non prevedibile a priori. Procedura da attivare su indicazione dell'UCL."]
[]
["PROCEDURA",null,null,null,null,null,null,null,null,null,null,null,null,"PROCEDURE OPERATIVE STANDARD DI RIFERIMENTO (POS)"]
[{"$f":"$L$4","v":"MR.3.1"},null,null,{"$f":"UPPER(N4)","v":"POSIZIONAMENTO CANCELLI - INFORMAZIONE ALLA POPOLAZIONE"},null,null,null,null,null,null,null,null,null,3,null,{"$f":"UPPER(VLOOKUP(N28,POS,2))","v":"PRESIDIO CANCELLI/SUPPORTO VIABILITÀ"}]
[null,null,null,null,null,null,null,null,null,null,null,null,null,4,null,{"$f":"UPPER(VLOOKUP(N29,POS,2))","v":"INFORMAZIONE DIRETTA ALLA POPOLAZIONE"}]
[{"$f":"$L$5","v":"MR.3.2"},null,null,"AREE DI RADUNO DEI SOCCORRITORI",null,null,null,null,null,null,null,null,null,6,null,{"$f":"UPPER(VLOOKUP(N30,POS,2))","v":"ALLESTIMENTO AREA DI AMMASSAMENTO SOCCORSI"}]
[{"$f":"$L$6","v":"MR.3.3"},null,null,{"$f":"UPPER(N6)","v":"ATTIVAZIONE AREE DI EMERGENZA"},null,null,null,null,null,null,null,null,null,5,null,{"$f":"UPPER(VLOOKUP(N31,POS,2))","v":"ALLESTIMENTO AREA DI RICOVERO"}]
[{"$f":"$L$7","v":"MR.3.4"},null,null,{"$f":"UPPER(N7)","v":" EVACUAZIONE"},null,null,null,null,null,null,null,null,null,7,null,{"$f":"UPPER(VLOOKUP(N32,POS,2))","v":"EVACUAZIONE"}]

{"sheet":"IV_2_A5","index":10,"n_rows":31,"n_cols":16,"rows_kept":31,"cut":false,"hidden":false,"merged":[[29,0,30,2],[29,3,30,12],[29,13,29,14],[29,15,29,28],[30,13,30,14],[30,15,30,28],[12,0,12,1],[12,2,12,28],[13,0,14,6],[13,7,14,28],[28,0,28,12],[28,13,28,28],[1,0,4,2],[1,3,2,28],[3,3,3,10],[3,11,3,12],[3,13,3,28],[4,3,4,10],[4,11,4,28]]}
[]
[{"$f":"IV","v":"IV.3"},null,null,"Rischio Interruzione Viabilità - Fase di Emergenza"]
[]
[null,null,null,"PROCEDURE DA ATTIVARE",null,null,null,null,null,null,null,{"$f":"$A$2&\".1\"","v":"IV.3.1"},null,"Posizionamento Cancelli - Informazione alla Popolazione"]
[null,null,null,"CARTOGRAFIA DI SUPPORTO",null,null,null,null,null,null,null,{"$f":"INDEX(IVPAR,1,39)","v":"Tav. 3/D - Stradario Piano di Emergenza"}]
[]
[]
[]
[]
[]
[]
[]
[{"$f":"$L$4","v":"IV.3.1"},null,{"$f":"UPPER(N4)","v":"POSIZIONAMENTO CANCELLI - INFORMAZIONE ALLA POPOLAZIONE"}]
["Ubicazione Intervento",null,null,null,null,null,null,"Non prevedibile a priori. Procedura da attivare su indicazione dell'UCL."]
[]
[]
[]
[]
[]
[]
[]
[]
[]
[]
[]
[]
[]
[]
["PROCEDURA",null,null,null,null,null,null,null,null,null,null,null,null,"PROCEDURE OPERATIVE STANDARD DI RIFERIMENTO (POS)"]
[{"$f":"$L$4","v":"IV.3.1"},null,null,{"$f":"UPPER(N4)","v":"POSIZIONAMENTO CANCELLI - INFORMAZIONE ALLA POPOLAZIONE"},null,null,null,null,null,null,null,null,null,3,null,{"$f":"UPPER(VLOOKUP(N30,POS,2))","v":"PRESIDIO CANCELLI/SUPPORTO VIABILITÀ"}]
[null,null,null,null,null,null,null,null,null,null,null,null,null,4,null,{"$f":"UPPER(VLOOKUP(N31,POS,2))","v":"INFORMAZIONE DIRETTA ALLA POPOLAZIONE"}]

{"sheet":"RS_2_A5","index":11,"n_rows":31,"n_cols":16,"rows_kept":31,"cut":false,"hidden":false,"merged":[[29,0,30,2],[29,3,30,12],[29,13,29,14],[29,15,29,28],[30,13,30,14],[30,15,30,28],[12,0,12,1],[12,2,12,28],[13,0,14,6],[13,7,14,28],[28,0,28,12],[28,13,28,28],[1,0,4,2],[1,3,2,28],[3,3,3,10],[3,11,3,12],[3,13,3,28],[4,3,4,10],[4,11,4,28]]}
[]
[{"$f":"_RT2","v":"RS.2"},null,null,"Rischio Sismico - Fase di Allarme"]
[]
[null,null,null,"PROCEDURE DA ATTIVARE",null,null,null,null,null,null,null,{"$f":"$A$2&\".1\"","v":"RS.2.1"},null,"Perlustrazione - Informazione alla Popolazione"]
[null,null,null,"CARTOGRAFIA DI SUPPORTO",null,null,null,null,null,null,null,{"$f":"INDEX(RT2PAR,1,39)","v":"Tav. 3/D - Stradario Piano di Emergenza"}]
[]
[]
[]
[]
[]
[]
[]
[{"$f":"$L$4","v":"RS.2.1"},null,{"$f":"UPPER(N4)","v":"PERLUSTRAZIONE - INFORMAZIONE ALLA POPOLAZIONE"}]
["Ubicazione Intervento",null,null,null,null,null,null,"Intero territorio comunale al fine di verificare i danni e di informare la popolazione su quanto accaduto"]
[]
[]
[]
[]
[]
[]
[]
[]
[]
[]
[]
[]
[]
[]
["PROCEDURA",null,null,null,null,null,null,null,null,null,null,null,null,"PROCEDURE OPERATIVE STANDARD DI RIFERIMENTO (POS)"]
[{"$f":"$L$4","v":"RS.2.1"},null,null,{"$f":"UPPER(N4)","v":"PERLUSTRAZIONE - INFORMAZIONE ALLA POPOLAZIONE"},null,null,null,null,null,null,null,null,null,3,null,{"$f":"UPPER(VLOOKUP(N30,POS,2))","v":"PRESIDIO CANCELLI/SUPPORTO VIABILITÀ"}]
[null,null,null,null,null,null,null,null,null,null,null,null,null,4,null,{"$f":"UPPER(VLOOKUP(N31,POS,2))","v":"INFORMAZIONE DIRETTA ALLA POPOLAZIONE"}]

{"sheet":"RS_3_A5","index":12,"n_rows":33,"n_cols":16,"rows_kept":33,"cut":false,"hidden":false,"merged":[[32,0,32,2],[32,3,32,12],[32,13,32,14],[32,15,32,28],[30,0,30,2],[30,3,30,12],[30,13,30,14],[30,15,30,28],[31,0,31,2],[31,3,31,12],[31,13,31,14],[31,15,31,28],[24,0,24,6],[24,7,24,28],[26,0,26,12],[26,13,26,28],[27,0,29,2],[27,3,29,12],[27,13,27,14],[27,15,27,28],[28,13,28,14],[28,15,28,28],[29,13,29,14],[29,15,29,28],[23,0,23,1],[23,2,23,28],[15,0,15,1],[15,2,15,28],[16,0,18,6],[16,7,16,28],[17,7,17,28],[18,7,18,28],[19,0,22,6],[19,7,19,28],[20,7,20,28],[21,7,21,28],[22,7,22,28],[9,2,9,28],[11,0,11,1],[11,2,11,28],[12,0,14,6],[12,7,12,28],[13,7,13,28],[14,7,14,28],[10,0,10,6],[10,7,10,28],[9,0,9,1],[1,0,7,2],[1,3,2,28],[3,3,6,10],[3,11,3,12],[3,13,3,28],[4,11,4,12],[4,13,4,28],[5,11,5,12],[5,13,5,28],[6,11,6,12],[6,13,6,28],[7,3,7,10],[7,11,7,28]]}
[]
[{"$f":"_RT3","v":"RS.3"},null,null,"Rischio Sismico - Fase di Emergenza"]
[]
[null,null,null,"PROCEDURE DA ATTIVARE",null,null,null,null,null,null,null,{"$f":"$A$2&\".1\"","v":"RS.3.1"},null,"Ripristino Viabilità - Informazione alla Popolazione - Primi Interventi"]
[null,null,null,null,null,null,null,null,null,null,null,{"$f":"$A$2&\".2\"","v":"RS.3.2"},null,"Attivazione Aree di Emergenza"]
[null,null,null,null,null,null,null,null,null,null,null,{"$f":"$A$2&\".3\"","v":"RS.3.3"},null," Evacuazione"]
[null,null,null,null,null,null,null,null,null,null,null,{"$f":"$A$2&\".4\"","v":"RS.3.4"},null,"Allestimento Aree di Raduno dei Soccorritori"]
[null,null,null,"CARTOGRAFIA DI SUPPORTO",null,null,null,null,null,null,null,{"$f":"INDEX(RT3PAR,1,39)","v":"Tav. 3/D - Stradario Piano di Emergenza"}]
[]
[{"$f":"$L$4","v":"RS.3.1"},null,{"$f":"UPPER(N4)","v":"RIPRISTINO VIABILITÀ - INFORMAZIONE ALLA POPOLAZIONE - PRIMI INTERVENTI"}]
["Ubicazione Intervento",null,null,null,null,null,null,"Non prevedibile a priori. Procedura da attivare su indicazione dell'UCL."]
[{"$f":"$L$5","v":"RS.3.2"},null,{"$f":"\"AREE E EDIFICI DISPONIBILI PER \" & UPPER(N7)","v":"AREE E EDIFICI DISPONIBILI PER ALLESTIMENTO AREE DI RADUNO DEI SOCCORRITORI"}]
["Area di raduno soccorritori",null,null,null,null,null,null,{"$f":"IF(INDEX(RI2SOC,1,1)=\"\",\"\",\"- \"&VLOOKUP(INDEX(RI2SOC,1,1),Soccorritori,17))","v":"- Centro Sportivo Comunale - Cod. Stradario 403 - Aviosuperficie"}]
[null,null,null,null,null,null,null,{"$f":"IF(INDEX(RI2SOC,1,2)=\"\",\"\",\"- \"&VLOOKUP(INDEX(RI2SOC,1,2),Soccorritori,17))","v":"- Centro Sportivo Comunale - Cod. Stradario 403 - Ammassamento"}]
[null,null,null,null,null,null,null,{"$f":"IF(INDEX(RI2SOC,1,3)=\"\",\"\",\"- \"&VLOOKUP(INDEX(RI2SOC,1,3),Soccorritori,17))","v":""}]
[{"$f":"$L$6","v":"RS.3.3"},null,{"$f":"\"AREE DISPONIBILI PER\" & UPPER(N5)","v":"AREE DISPONIBILI PERATTIVAZIONE AREE DI EMERGENZA"}]
["Aree di raccolta popolazione",null,null,null,null,null,null,{"$f":"IF(INDEX(RT3RIC,1,1)=\"\",\"\",\"- \"&VLOOKUP(INDEX(RT3RIC,1,1),Ricovero,17))","v":"- Centro Sportivo Comunale - Cod. Stradario 403 - Tendopoli"}]
[null,null,null,null,null,null,null,{"$f":"IF(INDEX(RT3RIC,1,2)=\"\",\"\",\"- \"&VLOOKUP(INDEX(RT3RIC,1,2),Ricovero,17))","v":"- Centro Sportivo Comunale - Cod. Stradario 403 - Ricovero"}]
[null,null,null,null,null,null,null,{"$f":"IF(INDEX(RT3RIC,1,3)=\"\",\"\",\"- \"&VLOOKUP(INDEX(RT3RIC,1,3),Ricovero,17))","v":"- Scuola Secondaria di I Grado \"Manzoni\" - Cod. Stradario 405 - Ricovero"}]
["Aree di ricovero",null,null,null,null,null,null,{"$f":"IF(INDEX(RT3RIC,1,4)=\"\",\"\",\"- \"&VLOOKUP(INDEX(RT3RIC,1,4),Ricovero,17))","v":"- Scuola Primaria Trescore Cremasco - Cod. Stradario 404 - Ricovero"}]
[null,null,null,null,null,null,null,{"$f":"IF(INDEX(RT3RIC,1,5)=\"\",\"\",\"- \"&VLOOKUP(INDEX(RT3RIC,1,5),Ricovero,17))","v":""}]
[null,null,null,null,null,null,null,{"$f":"IF(INDEX(RT3RIC,1,6)=\"\",\"\",\"- \"&VLOOKUP(INDEX(RT3RIC,1,6),Ricovero,17))","v":""}]
[null,null,null,null,null,null,null,{"$f":"IF(INDEX(RT3RIC,1,7)=\"\",\"\",\"- \"&VLOOKUP(INDEX(RT3RIC,1,7),Ricovero,17))","v":""}]
[{"$f":"$L$7","v":"RS.3.4"},null,{"$f":"\"AREE SOGGETTE A \"&UPPER(N6)","v":"AREE SOGGETTE A  EVACUAZIONE"}]
["Ubicazione Intervento",null,null,null,null,null,null,"Non prevedibile a priori. Procedura da attivare su indicazione dell'UCL."]
[]
["PROCEDURA",null,null,null,null,null,null,null,null,null,null,null,null,"PROCEDURE OPERATIVE STANDARD DI RIFERIMENTO (POS)"]
[{"$f":"$L$4","v":"RS.3.1"},null,null,{"$f":"UPPER(N4)","v":"RIPRISTINO VIABILITÀ - INFORMAZIONE ALLA POPOLAZIONE - PRIMI INTERVENTI"},null,null,null,null,null,null,null,null,null,3,null,{"$f":"UPPER(VLOOKUP(N28,POS,2))","v":"PRESIDIO CANCELLI/SUPPORTO VIABILITÀ"}]
[null,null,null,null,null,null,null,null,null,null,null,null,null,4,null,"INFORMAZIONE DIRETTA ALLA POPOLAZIONE"]
[null,null,null,null,null,null,null,null,null,null,null,null,null,8,null,"RIMOZIONE OSTACOLI"]
[{"$f":"$L$5","v":"RS.3.2"},null,null,{"$f":"UPPER(N5)","v":"ATTIVAZIONE AREE DI EMERGENZA"},null,null,null,null,null,null,null,null,null,5,null,"ALLESTIMENTO AREA DI RICOVERO"]
[{"$f":"$L$6","v":"RS.3.3"},null,null,{"$f":"UPPER(N6)","v":" EVACUAZIONE"},null,null,null,null,null,null,null,null,null,7,null,"EVACUAZIONE"]
[{"$f":"$L$7","v":"RS.3.4"},null,null,"AREE DI RADUNO DEI SOCCORRITORI",null,null,null,null,null,null,null,null,null,6,null,"ALLESTIMENTO AREA DI AMMASSAMENTO SOCCORSI"]

{"sheet":"POS_A5","index":13,"n_rows":241,"n_cols":9,"rows_kept":241,"cut":false,"hidden":false,"merged":[[239,0,239,7],[239,8,239,26],[240,0,240,7],[240,8,240,26],[232,0,238,7],[232,8,232,26],[233,8,233,26],[234,8,235,26],[236,8,236,26],[237,8,238,26],[227,0,230,7],[227,8,227,26],[228,8,228,26],[229,8,230,26],[231,0,231,7],[231,8,231,26],[223,0,224,7],[223,8,224,26],[225,0,225,7],[225,8,225,26],[226,0,226,7],[226,8,226,26],[205,0,205,7],[205,8,205,26],[206,0,206,7],[206,8,206,26],[221,0,222,2],[221,3,222,5],[221,6,222,26],[199,0,204,7],[199,8,199,26],[200,8,200,26],[201,8,201,26],[202,8,202,26],[203,8,204,26],[195,0,195,7],[195,8,195,26],[196,0,197,7],[196,8,197,26],[198,0,198,7],[198,8,198,26],[192,0,192,7],[192,8,192,26],[193,0,193,7],[193,8,193,26],[194,0,194,7],[194,8,194,26],[178,0,178,7],[178,8,178,26],[179,0,179,7],[179,8,179,26],[190,0,191,2],[190,3,191,5],[190,6,191,26],[173,0,173,7],[173,8,173,26],[174,0,177,7],[174,8,174,26],[175,8,176,26],[177,8,177,26],[166,0,166,7],[166,8,166,26],[167,0,167,7],[167,8,167,26],[168,0,172,7],[168,8,169,26],[170,8,170,26],[171,8,171,26],[172,8,172,26],[145,0,145,7],[145,8,145,26],[159,0,160,2],[159,3,160,5],[159,6,160,26],[161,0,165,7],[161,8,163,26],[164,8,165,26],[140,0,143,7],[140,8,140,26],[141,8,142,26],[143,8,143,26],[144,0,144,7],[144,8,144,26],[136,0,138,7],[136,8,136,26],[137,8,137,26],[138,8,138,26],[139,0,139,7],[139,8,139,26],[130,0,133,7],[130,8,131,26],[132,8,133,26],[134,0,134,7],[134,8,134,26],[135,0,135,7],[135,8,135,26],[118,0,118,7],[118,8,118,26],[119,0,119,7],[119,8,119,26],[128,0,129,2],[128,3,129,5],[128,6,129,26],[107,0,117,7],[107,8,108,26],[109,8,109,26],[110,8,110,26],[111,8,115,26],[116,8,116,26],[117,8,117,26],[103,0,105,7],[103,8,103,26],[104,8,104,26],[105,8,105,26],[106,0,106,7],[106,8,106,26],[99,0,99,7],[99,8,99,26],[100,0,101,7],[100,8,101,26],[102,0,102,7],[102,8,102,26],[90,0,90,7],[90,8,90,26],[91,0,91,7],[91,8,91,26],[97,0,98,2],[97,3,98,5],[97,6,98,26],[85,0,85,7],[85,8,85,26],[86,0,86,7],[86,8,86,26],[87,0,89,7],[87,8,87,26],[88,8,88,26],[89,8,89,26],[82,0,82,7],[82,8,82,26],[83,0,83,7],[83,8,83,26],[84,0,84,7],[84,8,84,26],[77,0,77,7],[77,8,77,26],[78,0,78,7],[78,8,78,26],[80,0,81,2],[80,3,81,5],[80,6,81,26],[70,0,70,7],[70,8,70,26],[71,0,76,7],[71,8,71,26],[72,8,72,26],[73,8,73,26],[74,8,74,26],[75,8,75,26],[76,8,76,26],[67,0,67,7],[67,8,67,26],[68,0,68,7],[68,8,68,26],[69,0,69,7],[69,8,69,26],[61,0,61,7],[61,8,61,26],[63,0,64,2],[63,3,64,5],[63,6,64,26],[65,0,66,7],[65,8,66,26],[58,0,58,7],[58,8,58,26],[59,0,59,7],[59,8,59,26],[60,0,60,7],[60,8,60,26],[54,0,54,7],[54,8,54,26],[55,0,57,7],[55,8,55,26],[56,8,56,26],[57,8,57,26],[46,0,46,7],[46,8,46,26],[48,0,49,2],[48,3,49,5],[48,6,49,26],[50,0,53,7],[50,8,50,26],[51,8,51,26],[52,8,52,26],[53,8,53,26],[42,0,42,7],[42,8,42,26],[43,0,44,7],[43,8,43,26],[44,8,44,26],[45,0,45,7],[45,8,45,26],[36,0,36,7],[36,8,36,26],[37,0,41,7],[37,8,37,26],[38,8,38,26],[39,8,39,26],[40,8,40,26],[41,8,41,26],[28,0,28,7],[28,8,28,26],[32,0,33,2],[32,3,33,5],[32,6,33,26],[34,0,35,7],[34,8,35,26],[24,0,26,7],[24,8,24,26],[25,8,25,26],[26,8,26,26],[27,0,27,7],[27,8,27,26],[20,0,20,7],[20,8,20,26],[21,0,22,7],[21,8,21,26],[22,8,22,26],[23,0,23,7],[23,8,23,26],[15,0,16,2],[15,3,16,5],[15,6,16,26],[17,0,18,7],[17,8,18,26],[19,0,19,7],[19,8,19,26],[12,0,12,7],[12,8,12,26],[13,0,13,7],[13,8,13,26],[6,0,6,7],[6,8,6,26],[7,0,8,7],[7,8,7,26],[8,8,8,26],[9,0,9,7],[9,8,9,26],[1,0,2,2],[1,3,2,5],[1,6,2,26],[3,0,4,7],[3,8,4,26],[5,0,5,7],[5,8,5,26],[10,0,11,7],[10,8,10,26],[11,8,11,26]]}
[]
["P.O.S.",null,null,1,null,null,"Monitoraggio"]
[]
["Descrizione attività",null,null,null,null,null,null,null,"Consiste nel presidio di una località in cui sia possibile l’inizio o sia in atto un dissesto idrogeologico. "]
[]
["Numero Operatori ",null,null,null,null,null,null,null,"Minimo 2 "]
["Automezzo dedicato",null,null,null,null,null,null,null,"Non necessario"]
["Equipaggiamento minimo consigliato ",null,null,null,null,null,null,null,"Vestiario alta visibilità EN471 - Impermeabile"]
[null,null,null,null,null,null,null,null,"Torcia elettrica"]
["Modalità di comunicazione",null,null,null,null,null,null,null,"Cellulare / Radio"]
["Azioni",null,null,null,null,null,null,null,"Osservare l’evoluzione dell’evento."]
[null,null,null,null,null,null,null,null,"Fare rapporti all’UCL ad intervalli regolari."]
["Ubicazione Postazioni di monitoraggio",null,null,null,null,null,null,null,"In accordo con il PE o dove stabilito dall'UCL."]
["Termine intervento",null,null,null,null,null,null,null,"Concordato con PCA / UCL - Alla cessata Emergenza."]
[]
["P.O.S.",null,null,2,null,null,"Perlustrazione"]
[]
["Descrizione attività",null,null,null,null,null,null,null,"Consiste nel controllo di ampie porzioni di territorio mediante pattuglie lungo percorsi che attraversino le aree a rischio."]
[]
["Numero Operatori",null,null,null,null,null,null,null,"Minimo 2 "]
["Automezzo dedicato",null,null,null,null,null,null,null,"Si"]
["Equipaggiamento minimo consigliato ",null,null,null,null,null,null,null,"Vestiario alta visibilità EN471 - Impermeabile"]
[null,null,null,null,null,null,null,null,"Torcia elettrica"]
["Modalità di comunicazione",null,null,null,null,null,null,null,"Cellulare / Radio"]
["Azioni",null,null,null,null,null,null,null,"Osservare l’evoluzione dell’evento."]
[null,null,null,null,null,null,null,null,"Fare rapporti all'UCL ad intervalli regolari sulla posizione della pattuglia."]
[null,null,null,null,null,null,null,null,"Comunicare all'UCL lo stato delle aree a rischio raggiunte."]
["Ubicazione Intervento",null,null,null,null,null,null,null,"In accordo con il PE o dove stabilito dall'UCL."]
["Termine intervento",null,null,null,null,null,null,null,"Concordato con PCA / UCL - Alla cessata Emergenza."]
[]
[]
[]
["P.O.S.",null,null,3,null,null,"Presidio Cancelli/Supporto Viabilità"]
[]
["Descrizione attività",null,null,null,null,null,null,null,"Posizionamento e presidio di cancelli, che regolino o interdicano l'accesso a vie o aree interessate da attività di protezione civile. "]
[]
["Numero Operatori e Automezzi",null,null,null,null,null,null,null,"Minimo 2 operatori dotati di automezzo."]
["Equipaggiamento minimo consigliato ",null,null,null,null,null,null,null,"Vestiario alta visibilità EN471 - Impermeabile"]
[null,null,null,null,null,null,null,null,"Torcia elettrica"]
[null,null,null,null,null,null,null,null,"Paletta"]
[null,null,null,null,null,null,null,null,"Transenne e/o nastro segnaletico"]
[null,null,null,null,null,null,null,null,"Cartelli segnaletici"]
["Modalità di comunicazione",null,null,null,null,null,null,null,"Cellulare / Radio"]
["Azioni",null,null,null,null,null,null,null,"Posizionare opportunamente transenne e segnaletica e presidiarle con continuità."]
[null,null,null,null,null,null,null,null,"Fare rapporti all'UCL ad intervalli regolari."]
["Ubicazione Intervento",null,null,null,null,null,null,null,"In accordo con il PE o dove stabilito dall'UCL."]
["Termine intervento",null,null,null,null,null,null,null,"Concordato con PCA / UCL - Alla cessata Emergenza."]
[]
["P.O.S.",null,null,4,null,null,"Informazione Diretta alla Popolazione"]
[]
["Descrizione attività",null,null,null,null,null,null,null,"Fornire alle persone esposte informazioni circa:"]
[null,null,null,null,null,null,null,null,"- la tipologia di evento calamitoso in atto;"]
[null,null,null,null,null,null,null,null,"- le misure di contrasto e/o prevenzione adottate;"]
[null,null,null,null,null,null,null,null,"- il comportamento da seguire."]
["Numero Operatori e Automezzi",null,null,null,null,null,null,null,"Minimo 2 operatori dotati di automezzo."]
["Equipaggiamento minimo consigliato ",null,null,null,null,null,null,null,"Vestiario alta visibilità EN471 - Impermeabile"]
[null,null,null,null,null,null,null,null,"Torcia elettrica"]
[null,null,null,null,null,null,null,null,"Megafono o altoparlante"]
["Modalità di comunicazione",null,null,null,null,null,null,null,"Cellulare / Radio"]
["Azioni",null,null,null,null,null,null,null,"Organizzare la diffusione delle informazioni sul territorio di competenza."]
["Ubicazione Intervento",null,null,null,null,null,null,null,"In accordo con il PE o dove stabilito dall'UCL."]
["Termine intervento",null,null,null,null,null,null,null,"Concordato con PCA / UCL - Alla cessata Emergenza."]
[]
["P.O.S.",null,null,5,null,null,"Allestimento Area di Ricovero"]
[]
["Descrizione attività",null,null,null,null,null,null,null,"Predisporre i materiali e le attrezzature necessarie all'accoglienza ed al ricovero della popolazione sfollata."]
[]
["Numero Operatori e Automezzi",null,null,null,null,null,null,null,"Minimo 2 squadre con automezzo."]
["Equipaggiamento minimo consigliato ",null,null,null,null,null,null,null,"Brande/Cuscini/Materassi/Coperte"]
["Materiale Necessario",null,null,null,null,null,null,null,"Generi di prima necessità (Acqua, Carta igienica, viveri, ecc.)"]
["Modalità di comunicazione",null,null,null,null,null,null,null,"Cellulare / Radio"]
["Azioni",null,null,null,null,null,null,null,"Reperire, trasportare e posizionare i materiali presso le aree prescelte."]
[null,null,null,null,null,null,null,null,"Organizzare un servizio di accoglienza registrazione e smistamento."]
[null,null,null,null,null,null,null,null,"Verificare necessità di assistenza sanitaria ed eventualmente comunicarla all'UCL."]
[null,null,null,null,null,null,null,null,"Distribuire generi di prima necessità."]
[null,null,null,null,null,null,null,null,"Fornire agli ospiti assistenza continua."]
[null,null,null,null,null,null,null,null,"Fare periodico rapporto all'UCL."]
["Ubicazione Intervento",null,null,null,null,null,null,null,"Aree definite nel PE o definite da UCL in emergenza."]
["Termine intervento",null,null,null,null,null,null,null,"Concordato con PCA / UCL"]
[]
["P.O.S.",null,null,6,null,null,"Allestimento Area di Ammassamento Soccorsi"]
[]
["Descrizione attività",null,null,null,null,null,null,null,"Predisporre i materiali e le attrezzature necessarie all'accoglienza dei soccorritori."]
["Numero Operatori e Automezzi",null,null,null,null,null,null,null,"Minimo 2 squadre con automezzo."]
["Equipaggiamento minimo consigliato ",null,null,null,null,null,null,null,"Brande/Cuscini/Materassi/Coperte"]
["Materiale Necessario",null,null,null,null,null,null,null,"Generi di prima necessità (Acqua, Carta igienica, viveri, ecc.)"]
["Modalità di comunicazione",null,null,null,null,null,null,null,"Cellulare / Radio"]
["Azioni",null,null,null,null,null,null,null,"Rendere accessibili le aree preventivamente individuate."]
[null,null,null,null,null,null,null,null,"Piantonare l'ingresso, accogliere registrare e dislocare mezzi e personale."]
[null,null,null,null,null,null,null,null,"Fare periodico rapporto all'UCL."]
["Ubicazione Intervento",null,null,null,null,null,null,null,"Aree definite nel PE o definite da UCL in emergenza."]
["Termine intervento",null,null,null,null,null,null,null,"Concordato con PCA / UCL"]
[]
[]
[]
[]
[]
["P.O.S.",null,null,7,null,null,"Evacuazione"]
[]
["Descrizione attività",null,null,null,null,null,null,null,"Consiste nella notifica dell'ordinanza di evacuazione e verifica dell'esecuzione. "]
["Numero Operatori",null,null,null,null,null,null,null,"Almeno 2 per ogni area (obbligatoria la presenza di almeno 1 agente di Pubblica Sicurezza)."]
[]
["Automezzo dedicato",null,null,null,null,null,null,null,"Si"]
["Equipaggiamento minimo consigliato ",null,null,null,null,null,null,null,"Vestiario alta visibilità EN471 - Impermeabile"]
[null,null,null,null,null,null,null,null,"Torcia elettrica"]
[null,null,null,null,null,null,null,null,"Copia Ordinanza e Modulo E2 - Scheda Registrazione Persone Evacuate"]
["Modalità di comunicazione",null,null,null,null,null,null,null,"Cellulare / Radio"]
["Azioni",null,null,null,null,null,null,null,"Comunicazione ad ogni unità abitativa dell'allarme in atto e della necessità di evacuazione. "]
[]
[null,null,null,null,null,null,null,null,"Dare alla popolazione delle disposizioni per un corretto allontanamento."]
[null,null,null,null,null,null,null,null,"Informare circa l'ubicazione dell'Area di Accoglienza/Ricovero."]
[null,null,null,null,null,null,null,null,"Comunicare all'UCL se le persone evacuate intendano usufruire dell'Area di Accoglienza/Ricovero o se provvedono da soli al proprio alloggiamento presso strutture private (alberghi, parenti, amici…); in tal caso comunicare anche un recapito telefonico per comunicazioni di urgenza."]
[]
[]
[]
[]
[null,null,null,null,null,null,null,null,"Comunicare all'UCL il progressivo sgombero dei numeri civici interessati."]
[null,null,null,null,null,null,null,null,"A evacuazione ultimata presidio e controllo delle aree disabitate."]
["Ubicazione Intervento",null,null,null,null,null,null,null,"In accordo con il PE o dove stabilito dall'UCL."]
["Termine intervento",null,null,null,null,null,null,null,"Concordato con PCA / UCL - Alla cessata Emergenza."]
[]
[]
[]
[]
[]
[]
[]
[]
["P.O.S.",null,null,8,null,null,"Rimozione Ostacoli"]
[]
["Descrizione attività",null,null,null,null,null,null,null,"Rimuovere ostacoli di diverso genere (materiale franato o schiantato, o abbattuto)  che possano compromettere la viabilità o l’accesso ad aree strategiche  pubbliche o private."]
[]
[null,null,null,null,null,null,null,null,"Oltre alla rimozione si prevede contestualmente od in alternativa la messa in sicurezza dell’area.  "]
[]
["Numero Operatori",null,null,null,null,null,null,null,"Minimo 2 - Meglio una squadra"]
["Automezzo dedicato",null,null,null,null,null,null,null,"Si"]
["Equipaggiamento minimo consigliato ",null,null,null,null,null,null,null,"Vestiario alta visibilità EN471 - Impermeabile - DPI antitaglio"]
[null,null,null,null,null,null,null,null,"Attrezzatura: badili, picconi, rastri , roncole, motosega, decespugliatori \n"]
[null,null,null,null,null,null,null,null,"Materiali di delimitazione: transenne e segnali"]
["Modalità di comunicazione",null,null,null,null,null,null,null,"Cellulare / Radio"]
["Azioni",null,null,null,null,null,null,null,"Perimetrare l’area, inibirne l’accesso e verificarne la sicurezza."]
[null,null,null,null,null,null,null,null,"Rimuovere l’ostacolo direttamente e/o verificare se necessario con UCL l’invio di macchinari specifici."]
[]
[null,null,null,null,null,null,null,null,"Fare rapporti all’UCL ad intervalli regolari descrivendo lo stato dell’avanzamento dei lavori."]
["Ubicazione Intervento",null,null,null,null,null,null,null,"In accordo con il PE o dove stabilito dall'UCL."]
["Termine intervento",null,null,null,null,null,null,null,"Concordato con PCA / UCL - Alla cessata Emergenza."]
[]
[]
[]
[]
[]
[]
[]
[]
[]
[]
[]
[]
[]
["P.O.S.",null,null,9,null,null,"Rimozione Ostacoli da Alveo"]
[]
["Descrizione attività",null,null,null,null,null,null,null,"Rimuovere ostacoli di diverso genere (alberi, automobili, passerelle pedonali crollate, oggetti abbandonati di dimensioni rilevamnti, ecc. )  che possano compromettere il normale deflusso dell'acqua nell'alveo o che ostruiscano parzialmente la luce di un attraversamento. "]
[]
[]
[null,null,null,null,null,null,null,null,"Oltre alla rimozione si prevede, se tecnicamente possibile, la definitiva messa in sicurezza dell’area.  "]
[]
["Numero Operatori",null,null,null,null,null,null,null,"Almeno una squadra."]
["Automezzo dedicato",null,null,null,null,null,null,null,"Si"]
["Equipaggiamento minimo consigliato ",null,null,null,null,null,null,null,"Vestiario alta visibilità EN471 - Impermeabile - DPI antitaglio - Imbragatura o Dispositivi di Protezione Anticaduta."]
[]
[null,null,null,null,null,null,null,null,"Attrezzatura: badili, picconi, rastri , roncole, motosega, decespugliatori.\n"]
[null,null,null,null,null,null,null,null,"Attrezzature speciali: se necessarie idonee macchine d'opera."]
[null,null,null,null,null,null,null,null,"Materiali di delimitazione: transenne e segnali"]
["Modalità di comunicazione",null,null,null,null,null,null,null,"Cellulare / Radio"]
["Azioni",null,null,null,null,null,null,null,"Perimetrare l’area, inibirne l’accesso e verificarne la sicurezza."]
[null,null,null,null,null,null,null,null,"Rimuovere l’ostacolo direttamente e/o verificare se necessario con UCL l’invio di macchinari specifici."]
[]
[null,null,null,null,null,null,null,null,"Fare rapporti all’UCL ad intervalli regolari descrivendo lo stato dell’avanzamento dei lavori."]
["Ubicazione Intervento",null,null,null,null,null,null,null,"In accordo con il PE o dove stabilito dall'UCL."]
["Termine intervento",null,null,null,null,null,null,null,"Concordato con PCA / UCL - Alla cessata Emergenza."]
[]
[]
[]
[]
[]
[]
[]
[]
[]
[]
["P.O.S.",null,null,10,null,null,"Preservazione Argini"]
[]
["Descrizione attività",null,null,null,null,null,null,null,"Preparare e posizionare sacchetti di sabbia per arginature."]
["Numero Operatori",null,null,null,null,null,null,null,"Una squadra per ogni sezione di argine a rischio."]
["Automezzo dedicato",null,null,null,null,null,null,null,"Si"]
["Equipaggiamento minimo consigliato ",null,null,null,null,null,null,null,"Vestiario alta visibilità EN471 - Impermeabile."]
["Materiale Necessario",null,null,null,null,null,null,null,"Sabbia - sacchi in nylon o canapa - cordame - badili  - bancali - teli di cellophane o nylon  - idrovore ( almeno 1.000 lt/min) con aspirazione e tubi di mandata."]
[]
["Modalità di comunicazione",null,null,null,null,null,null,null,"Cellulare / Radio"]
["Azioni",null,null,null,null,null,null,null,"Predisposizione in area sicura dei sacchi di sabbia da impiegare:"]
[null,null,null,null,null,null,null,null,"- nell' innalzamento degli argini;"]
[null,null,null,null,null,null,null,null,"- nell'allestimento di barriere di protezione per gli accessi agli immobili più esposti."]
[null,null,null,null,null,null,null,null,"Nelle aree arginate e sicure posizionare idrovore per l'allontanamento dell'acqua."]
[null,null,null,null,null,null,null,null,"Fare rapporti all'UCL ad intervalli regolari descrivendo lo stato degli argini e l'avanzamento dei lavori."]
[]
["Ubicazione Intervento",null,null,null,null,null,null,null,"In accordo con il PE o dove stabilito dall'UCL."]
["Termine intervento",null,null,null,null,null,null,null,"Concordato con PCA / UCL - Alla cessata Emergenza."]
[]
[]
[]
[]
[]
[]
[]
[]
[]
[]
[]
[]
[]
[]
["P.O.S.",null,null,11,null,null,"Frana"]
[]
["Descrizione attività",null,null,null,null,null,null,null,"Mitigazione del rischio derivato da dissesti idrogeologici in evoluzione mediante interventi in emergenza eseguiti direttamente sul corpo di frana."]
[]
["Numero Operatori",null,null,null,null,null,null,null,"Minimo 2 - Meglio una squadra."]
["Automezzo dedicato",null,null,null,null,null,null,null,"Si"]
["Equipaggiamento minimo consigliato ",null,null,null,null,null,null,null,"Vestiario alta visibilità EN471 - Impermeabile - DPI antitaglio"]
[null,null,null,null,null,null,null,null,"Attrezzatura: badili, picconi, rastri , roncole, motosega, decespugliatori.\n"]
[null,null,null,null,null,null,null,null,"Materiali di consumo:  teli di cellophane o nylon, transenne e segnali, materiali da costruzione."]
[]
["Modalità di comunicazione",null,null,null,null,null,null,null,"Cellulare / Radio"]
["Azioni",null,null,null,null,null,null,null,"Mettere in sicurezza le aree interessate dallo smottamento:"]
[null,null,null,null,null,null,null,null,"-  limitando, se possibile, l'afflusso di acqua alle aree in dissesto;"]
[null,null,null,null,null,null,null,null,"- perimetrare l'area interessata e, se possibile, coprire con teli impermeabili le aree soggette a smottamento."]
[]
[null,null,null,null,null,null,null,null,"- provvedere allo sgombero degli ostacoli come da POS dedicata"]
[null,null,null,null,null,null,null,null,"- attendere la consulenza di personale tecnico specializzato prima di mettere in atto ulteriori interventi o accedere all'area in dissesto."]
[]
["Ubicazione Intervento",null,null,null,null,null,null,null,"In accordo con il PE o dove stabilito dall'UCL."]
["Termine intervento",null,null,null,null,null,null,null,"Concordato con PCA / UCL - Alla cessata Emergenza."]

{"sheet":"IRA_3_A5","index":14,"n_rows":126,"n_cols":17,"rows_kept":126,"cut":false,"hidden":false,"merged":[[124,0,124,2],[124,3,124,12],[124,13,124,14],[124,15,124,28],[125,0,125,2],[125,3,125,12],[125,13,125,14],[125,15,125,28],[114,0,115,6],[114,7,115,28],[117,0,117,1],[117,2,117,28],[118,0,119,6],[118,7,119,28],[122,0,122,12],[122,13,122,28],[123,0,123,2],[123,3,123,12],[123,13,123,14],[123,15,123,28],[113,0,113,1],[113,2,113,28],[101,11,102,28],[104,0,104,1],[104,2,104,28],[105,0,107,6],[105,7,105,28],[106,7,106,28],[107,7,107,28],[96,0,102,2],[96,3,97,28],[98,3,100,10],[98,11,98,12],[98,13,98,28],[99,11,99,12],[99,13,99,28],[108,0,111,6],[108,7,108,28],[109,7,109,28],[110,7,110,28],[111,7,111,28],[27,0,27,6],[27,7,27,28],[26,0,26,28],[100,11,100,12],[100,13,100,28],[101,3,102,10],[29,0,29,12],[29,13,29,28],[30,0,32,2],[30,3,32,12],[30,13,30,14],[30,15,30,28],[31,13,31,14],[31,15,31,28],[32,13,32,14],[32,15,32,28],[12,1,12,15],[1,0,5,2],[1,3,2,28],[3,3,4,10],[3,11,4,12],[3,13,4,28],[5,3,5,10],[5,11,5,28],[7,0,7,1],[7,2,7,28],[20,0,20,28],[18,1,18,15],[19,1,19,15],[8,16,8,28],[9,16,9,28],[10,16,10,28],[11,16,11,28],[12,16,12,28],[13,16,13,28],[14,16,14,28],[15,16,15,28],[16,16,16,28],[17,16,17,28],[18,16,18,28],[19,16,19,28],[13,1,13,15],[14,1,14,15],[15,1,15,15],[16,1,16,15],[17,1,17,15],[8,1,8,15],[9,1,9,15],[10,1,10,15],[11,1,11,15],[24,1,24,15],[25,1,25,15],[21,16,21,28],[22,16,22,28],[23,16,23,28],[24,16,24,28],[25,16,25,28],[21,1,21,15],[22,1,22,15],[23,1,23,15]]}
[]
[{"$f":"_RSS2","v":"IRD.3"},null,null,"Incidente Ashland Industries S.p.a."]
[]
[null,null,null,"PROCEDURE DA ATTIVARE",null,null,null,null,null,null,null,{"$f":"$A$2&\".1\"","v":"IRD.3.1"},null,"Posizionamento Cancelli - Perlustrazione - Informazione alla Popolazione"]
[]
[null,null,null,"CARTOGRAFIA DI SUPPORTO",null,null,null,null,null,null,null,{"$f":"INDEX(RSS2PAR,1,39)","v":0}]
[]
[{"$f":"$L$4","v":"IRD.3.1"},null,"POSIZIONAMENTO CANCELLI - FORMALDEIDE"]
["N°","POSIZIONAMENTO",null,null,null,null,null,null,null,null,null,null,null,null,null,null,"DIREZIONE VIETATA"]
[1,"Incrocio Incrocio Via Vittorio Veneto - Via del Campo",null,null,null,null,null,null,null,null,null,null,null,null,null,null,"Via del Campo in direzione Sud Est"]
[2,"Incrocio Via San Rocco (SP178) - Via Rossini",null,null,null,null,null,null,null,null,null,null,null,null,null,null,"Via San Rocco (SP178) in direzione Sud"]
[3,"Via del Lavoro",null,null,null,null,null,null,null,null,null,null,null,null,null,null,"Ingressi Aree Colpite"]
[4,"Via del Lavoro",null,null,null,null,null,null,null,null,null,null,null,null,null,null,"Ingressi Aree Colpite"]
[6,"Incrocio Via delle Robinie - Via dei Gelsi",null,null,null,null,null,null,null,null,null,null,null,null,null,null,"Via dei Gelsi"]
[0,0,null,null,null,null,null,null,null,null,null,null,null,null,null,null,0]
[0,0,null,null,null,null,null,null,null,null,null,null,null,null,null,null,0]
[0,0,null,null,null,null,null,null,null,null,null,null,null,null,null,null,0]
[0,0,null,null,null,null,null,null,null,null,null,null,null,null,null,null,0]
[0,0,null,null,null,null,null,null,null,null,null,null,null,null,null,null,0]
[0,0,null,null,null,null,null,null,null,null,null,null,null,null,null,null,0]
["POSIZIONAMENTO CANCELLI - EPICLORIDINA"]
[0,0,null,null,null,null,null,null,null,null,null,null,null,null,null,null,0]
[0,0,null,null,null,null,null,null,null,null,null,null,null,null,null,null,0]
[0,0,null,null,null,null,null,null,null,null,null,null,null,null,null,null,0]
[0,0,null,null,null,null,null,null,null,null,null,null,null,null,null,null,0]
[0,0,null,null,null,null,null,null,null,null,null,null,null,null,null,null,0]
["AREE DOVE PROVVEDERE ALL'INFORMAZIONE ALLA POPOLAZIONE"]
["Ubicazione Intervento",null,null,null,null,null,null,"Tutto il territorio comunale all'interno dei posti di blocco e al di fuori delle zone a rischio."]
[]
["PROCEDURA",null,null,null,null,null,null,null,null,null,null,null,null,"PROCEDURE OPERATIVE STANDARD DI RIFERIMENTO (POS)"]
[{"$f":"$L$4","v":"IRD.3.1"},null,null,{"$f":"UPPER(N4)","v":"POSIZIONAMENTO CANCELLI - PERLUSTRAZIONE - INFORMAZIONE ALLA POPOLAZIONE"},null,null,null,null,null,null,null,null,null,2,null,{"$f":"UPPER(VLOOKUP(N31,POS,2))","v":"PERLUSTRAZIONE"}]
[null,null,null,null,null,null,null,null,null,null,null,null,null,3,null,{"$f":"UPPER(VLOOKUP(N32,POS,2))","v":"PRESIDIO CANCELLI/SUPPORTO VIABILITÀ"}]
[null,null,null,null,null,null,null,null,null,null,null,null,null,4,null,{"$f":"UPPER(VLOOKUP(N33,POS,2))","v":"INFORMAZIONE DIRETTA ALLA POPOLAZIONE"}]
[]
[]
[]
[]
[]
[]
[]
[]
[]
[]
[]
[]
[]
[]
[]
[]
[]
[]
[]
[]
[]
[]
[]
[]
[]
[]
[]
[]
[]
[]
[]
[]
[]
[]
[]
[]
[]
[]
[]
[]
[]
[]
[]
[]
[]
[]
[]
[]
[]
[]
[]
[]
[]
[]
[]
[]
[]
[]
[]
[]
[]
[]
[]
[{"$f":"_RSS2","v":"IRD.3"},null,null,{"$f":"$D$2","v":"Incidente Ashland Industries S.p.a."}]
[]
[null,null,null,"PROCEDURE DA ATTIVARE",null,null,null,null,null,null,null,{"$f":"$A$2&\".2\"","v":"IRD.3.2"},null,"Attivazione Aree di Emergenza"]
[null,null,null,null,null,null,null,null,null,null,null,{"$f":"$A$2&\".3\"","v":"IRD.3.3"},null," Evacuazione"]
[null,null,null,null,null,null,null,null,null,null,null,{"$f":"$A$2&\".4\"","v":"IRD.3.4"},null,"Revoca dello stato di emergenza "]
[null,null,null,"CARTOGRAFIA DI SUPPORTO",null,null,null,null,null,null,null,{"$f":"INDEX(RSS2PAR,1,39) & \" - \" &RIGHT(INDEX(RSS2PAR,1,28),LEN([1]Maschera!$AL$25)-SEARCH(\"-\",[1]Maschera!$AL$25,10))","v":{"$error":"#VALUE!"}}]
[]
[]
[{"$f":"$L$99","v":"IRD.3.2"},null,{"$f":"\"AREE E EDIFICI DISPONIBILI PER \" & UPPER($N$99)","v":"AREE E EDIFICI DISPONIBILI PER ATTIVAZIONE AREE DI EMERGENZA"}]
["Aree di raccolta popolazione",null,null,null,null,null,null,{"$f":"IF(INDEX(RSS2RIC,1,1)=\"\",\"\",\"- \"&VLOOKUP(INDEX(RSS2RIC,1,1),Ricovero,17))","v":""}]
[null,null,null,null,null,null,null,{"$f":"IF(INDEX(RSS2RIC,1,2)=\"\",\"\",\"- \"&VLOOKUP(INDEX(RSS2RIC,1,2),Ricovero,17))","v":""}]
[null,null,null,null,null,null,null,{"$f":"IF(INDEX(RSS2RIC,1,3)=\"\",\"\",\"- \"&VLOOKUP(INDEX(RSS2RIC,1,3),Ricovero,17))","v":""}]
["Aree di ricovero",null,null,null,null,null,null,{"$f":"IF(INDEX(RSS2RIC,1,4)=\"\",\"\",\"- \"&VLOOKUP(INDEX(RSS2RIC,1,4),Ricovero,17))","v":""}]
[null,null,null,null,null,null,null,{"$f":"IF(INDEX(RSS2RIC,1,5)=\"\",\"\",\"- \"&VLOOKUP(INDEX(RSS2RIC,1,5),Ricovero,17))","v":""}]
[null,null,null,null,null,null,null,{"$f":"IF(INDEX(RSS2RIC,1,6)=\"\",\"\",\"- \"&VLOOKUP(INDEX(RSS2RIC,1,6),Ricovero,17))","v":""}]
[null,null,null,null,null,null,null,{"$f":"IF(INDEX(RSS2RIC,1,7)=\"\",\"\",\"- \"&VLOOKUP(INDEX(RSS2RIC,1,7),Ricovero,17))","v":""}]
[]
[{"$f":"$L$100","v":"IRD.3.3"},null,{"$f":"\"AREE SOGGETTE A \"&UPPER($N$100)","v":"AREE SOGGETTE A  EVACUAZIONE"}]
["Ubicazione Intervento",null,null,null,null,null,null,"Su disposizione dell'UCL le zone colpite indicate in accordo con il PCA."]
[]
[]
[{"$f":"$L$101","v":"IRD.3.4"},null,{"$f":"\"AREE DOVE ESEGUIRE LA \"&UPPER(N101)","v":"AREE DOVE ESEGUIRE LA REVOCA DELLO STATO DI EMERGENZA "}]
["Ubicazione Intervento",null,null,null,null,null,null,"Area interessata dalle conseguenze dell'incidente."]
[]
[]
[]
["PROCEDURA",null,null,null,null,null,null,null,null,null,null,null,null,"PROCEDURE OPERATIVE STANDARD DI RIFERIMENTO (POS)"]
[{"$f":"$L$99","v":"IRD.3.2"},null,null,{"$f":"UPPER($N$99)","v":"ATTIVAZIONE AREE DI EMERGENZA"},null,null,null,null,null,null,null,null,null,5,null,{"$f":"UPPER(VLOOKUP(N124,POS,2))","v":"ALLESTIMENTO AREA DI RICOVERO"}]
[{"$f":"$L$100","v":"IRD.3.3"},null,null,{"$f":"UPPER($N$100)","v":" EVACUAZIONE"},null,null,null,null,null,null,null,null,null,7,null,{"$f":"UPPER(VLOOKUP(N125,POS,2))","v":"EVACUAZIONE"}]
[{"$f":"$L$101","v":"IRD.3.4"},null,null,{"$f":"UPPER($N$101)","v":"REVOCA DELLO STATO DI EMERGENZA "},null,null,null,null,null,null,null,null,null,4,null,{"$f":"UPPER(VLOOKUP(N126,POS,2))","v":"INFORMAZIONE DIRETTA ALLA POPOLAZIONE"}]

{"sheet":"RIV_2_A5","index":15,"n_rows":31,"n_cols":16,"rows_kept":31,"cut":false,"hidden":false,"merged":[[30,13,30,14],[30,15,30,28],[26,0,26,12],[26,13,26,28],[27,0,30,2],[27,3,30,12],[27,13,27,14],[27,15,27,28],[28,13,28,14],[28,15,28,28],[29,13,29,14],[29,15,29,28],[15,0,15,28],[16,0,21,6],[16,7,17,28],[18,7,18,28],[19,7,19,28],[20,7,20,28],[21,7,21,28],[11,0,11,1],[11,2,11,28],[12,0,12,1],[12,2,12,28],[13,0,13,1],[13,2,13,28],[8,0,8,1],[8,2,8,28],[9,0,9,1],[9,2,9,28],[10,0,10,1],[10,2,10,28],[1,0,4,2],[1,3,2,28],[3,3,3,10],[3,11,3,12],[3,13,3,28],[4,3,4,10],[4,11,4,28]]}
[]
[{"$f":"_RSS4","v":"RIL.2"},null,null,"Esondazione Torrente Vareggio - Fase di Allerta Codice 2"]
[]
[null,null,null,"PROCEDURE DA ATTIVARE",null,null,null,null,null,null,null,{"$f":"A2&\".1\"","v":"RIL.2.1"},null,"Servizio di Allerta - Monitoraggio"]
[null,null,null,"Cartografia di Supporto",null,null,null,null,null,null,null,{"$f":"INDEX(RSS4PAR,1,39)","v":0}]
[]
[]
[]
[{"$f":"$L$4","v":"RIL.2.1"},null,"PUNTI DI MONITORAGGIO"]
["Cod.",null,"Località/Vulnerabilità"]
[1,null,"Abitato lungo Via Ripamonti (SP178)"]
[2,null,"Municipio - Via Della Busa - Via Strada Vecchia"]
[3,null,"Incrocio Via Italia (SP2) - Via Ripamonti (SP178)"]
[4,null,"Zona limitrofa alla fine del tratto tombinato del Torrente Vareggio"]
[]
["PERCORSI DI PERLUSTRAZIONE"]
["Percorsi Identificati",null,null,null,null,null,null,"Deve essere condotta lungo i tratti di territorio compresi tra i punti di monitoraggio identificati in precedenza, in particolare:"]
[]
[null,null,null,null,null,null,null,"- Da Post. 1 a Post. 2 lungo via Regina Margherita in auto"]
[null,null,null,null,null,null,null,"- Da Post. 2 a Post. 3 lungo via Regina Margherita in auto"]
[null,null,null,null,null,null,null,"- Da Post. 3 a Post. 4 lungo lungo sommità argine a piedi "]
[null,null,null,null,null,null,null,"- Da Post. 4 a Post. 5 lungo via Osculati e via Regina Margherita in auto"]
[]
[]
[]
[]
["PROCEDURA",null,null,null,null,null,null,null,null,null,null,null,null,"PROCEDURE OPERATIVE STANDARD DI RIFERIMENTO (POS)"]
[{"$f":"L4","v":"RIL.2.1"},null,null,{"$f":"UPPER(N4)","v":"SERVIZIO DI ALLERTA - MONITORAGGIO"},null,null,null,null,null,null,null,null,null,1,null,{"$f":"UPPER(VLOOKUP(N28,POS,2))","v":"MONITORAGGIO"}]
[null,null,null,null,null,null,null,null,null,null,null,null,null,2,null,{"$f":"UPPER(VLOOKUP(N29,POS,2))","v":"PERLUSTRAZIONE"}]
[null,null,null,null,null,null,null,null,null,null,null,null,null,4,null,{"$f":"UPPER(VLOOKUP(N30,POS,2))","v":"INFORMAZIONE DIRETTA ALLA POPOLAZIONE"}]
[null,null,null,null,null,null,null,null,null,null,null,null,null,9,null,{"$f":"UPPER(VLOOKUP(N31,POS,2))","v":"RIMOZIONE OSTACOLI DA ALVEO"}]

{"sheet":"RIV_3_A5","index":16,"n_rows":31,"n_cols":16,"rows_kept":31,"cut":false,"hidden":false,"merged":[[17,0,20,6],[18,7,18,28],[19,7,19,28],[20,7,20,28],[30,0,30,2],[30,3,30,12],[30,13,30,14],[30,15,30,28],[29,0,29,2],[29,3,29,12],[29,13,29,14],[29,15,29,28],[16,7,16,28],[17,7,17,28],[26,0,26,12],[26,13,26,28],[27,0,28,2],[27,3,28,12],[27,13,27,14],[27,15,27,28],[28,13,28,14],[28,15,28,28],[23,0,24,6],[23,7,24,28],[22,0,22,1],[22,2,22,28],[14,0,16,6],[14,7,14,28],[9,0,9,1],[9,2,9,28],[10,0,11,6],[10,7,11,28],[15,7,15,28],[13,0,13,1],[13,2,13,28],[1,0,6,2],[1,3,2,28],[3,11,3,12],[3,13,3,28],[6,3,6,10],[6,11,6,28],[3,3,5,10],[4,11,4,12],[4,13,4,28],[5,11,5,12],[5,13,5,28]]}
[]
[{"$f":"_RSS5","v":"RIL.3"},null,null,"Esondazione Torrente Vareggio - Fase di Allerta Codice 3"]
[]
[null,null,null,"PROCEDURE DA ATTIVARE",null,null,null,null,null,null,null,{"$f":"$A$2&\".1\"","v":"RIL.3.1"},null,"Posizionamento Cancelli - Informazione alla Popolazione"]
[null,null,null,null,null,null,null,null,null,null,null,{"$f":"$A$2&\".2\"","v":"RIL.3.2"},null,"Attivazione Aree di Emergenza"]
[null,null,null,null,null,null,null,null,null,null,null,{"$f":"$A$2&\".3\"","v":"RIL.3.3"},null," Evacuazione"]
[null,null,null,"CARTOGRAFIA DI SUPPORTO",null,null,null,null,null,null,null,{"$f":"INDEX(RSS4PAR,1,39)","v":0}]
[]
[]
[{"$f":"$L$4","v":"RIL.3.1"},null,"POSIZIONAMENTO CANCELLI"]
["Ubicazione Intervento",null,null,null,null,null,null,"Zone lungo il corso tombinato del Torrente Vareggio ed alla fine del tratto coperto non prevedibili a priori."]
[]
[]
[{"$f":"$L$5","v":"RIL.3.2"},null,{"$f":"\"AREE E EDIFICI DISPONIBILI PER \" & UPPER(N5)","v":"AREE E EDIFICI DISPONIBILI PER ATTIVAZIONE AREE DI EMERGENZA"}]
["Aree di raccolta popolazione",null,null,null,null,null,null,{"$f":"IF(INDEX(RSS5RIC,1,1)=\"\",\"\",\"- \"&VLOOKUP(INDEX(RSS5RIC,1,1),Ricovero,17))","v":""}]
[null,null,null,null,null,null,null,{"$f":"IF(INDEX(RSS5RIC,1,2)=\"\",\"\",\"- \"&VLOOKUP(INDEX(RSS5RIC,1,2),Ricovero,17))","v":""}]
[null,null,null,null,null,null,null,{"$f":"IF(INDEX(RSS5RIC,1,3)=\"\",\"\",\"- \"&VLOOKUP(INDEX(RSS5RIC,1,3),Ricovero,17))","v":""}]
["Aree di ricovero",null,null,null,null,null,null,{"$f":"IF(INDEX(RSS5RIC,1,4)=\"\",\"\",\"- \"&VLOOKUP(INDEX(RSS5RIC,1,4),Ricovero,17))","v":""}]
[]
[]
[]
[]
[{"$f":"$L$6","v":"RIL.3.3"},null,{"$f":"\"AREE SOGGETTE A \"&UPPER(N6)","v":"AREE SOGGETTE A  EVACUAZIONE"}]
["Ubicazione Intervento",null,null,null,null,null,null,"Zone lungo il corso tombinato del Torrente Vareggio ed alla fine del tratto coperto non prevedibili a priori."]
[]
[]
["PROCEDURA",null,null,null,null,null,null,null,null,null,null,null,null,"PROCEDURE OPERATIVE STANDARD DI RIFERIMENTO (POS)"]
[{"$f":"$L$4","v":"RIL.3.1"},null,null,{"$f":"UPPER(N4)","v":"POSIZIONAMENTO CANCELLI - INFORMAZIONE ALLA POPOLAZIONE"},null,null,null,null,null,null,null,null,null,3,null,{"$f":"UPPER(VLOOKUP(N28,POS,2))","v":"PRESIDIO CANCELLI/SUPPORTO VIABILITÀ"}]
[null,null,null,null,null,null,null,null,null,null,null,null,null,4,null,{"$f":"UPPER(VLOOKUP(N29,POS,2))","v":"INFORMAZIONE DIRETTA ALLA POPOLAZIONE"}]
[{"$f":"$L$5","v":"RIL.3.2"},null,null,{"$f":"UPPER($N$5)","v":"ATTIVAZIONE AREE DI EMERGENZA"},null,null,null,null,null,null,null,null,null,5,null,{"$f":"UPPER(VLOOKUP(N30,POS,2))","v":"ALLESTIMENTO AREA DI RICOVERO"}]
[{"$f":"$L$6","v":"RIL.3.3"},null,null,{"$f":"UPPER($N$6)","v":" EVACUAZIONE"},null,null,null,null,null,null,null,null,null,7,null,{"$f":"UPPER(VLOOKUP(N31,POS,2))","v":"EVACUAZIONE"}]

{"sheet":"RIV_4_A5","index":17,"n_rows":29,"n_cols":16,"rows_kept":29,"cut":false,"hidden":false,"merged":[[28,0,28,2],[28,3,28,12],[28,13,28,14],[28,15,28,28],[26,0,27,2],[26,3,27,12],[26,13,26,14],[26,15,26,28],[27,13,27,14],[27,15,27,28],[17,0,19,6],[17,7,17,28],[18,7,18,28],[19,7,19,28],[25,0,25,12],[25,13,25,28],[10,0,10,1],[10,2,10,28],[11,0,11,6],[11,7,11,28],[16,0,16,1],[16,2,16,28],[1,0,5,2],[1,3,2,28],[3,3,4,10],[3,11,3,12],[3,13,3,28],[4,11,4,12],[4,13,4,28],[5,3,5,10],[5,11,5,28]]}
[]
[{"$f":"_RSS6","v":"RIL.4"},null,null,"Esondazione Torrente Vareggio - Fase di Allerta Codice 4"]
[]
[null,null,null,"PROCEDURE DA ATTIVARE",null,null,null,null,null,null,null,{"$f":"$A$2&\".1\"","v":"RIL.4.1"},null,"Interventi di Emergenza in Alveo"]
[null,null,null,null,null,null,null,null,null,null,null,{"$f":"$A$2&\".2\"","v":"RIL.4.2"},null,"Allestimento Aree di Raduno dei Soccorritori"]
[null,null,null,"Cartografia di Supporto",null,null,null,null,null,null,null,{"$f":"INDEX(RSS4PAR,1,39)","v":0}]
[]
[]
[]
[]
[{"$f":"$L$4","v":"RIL.4.1"},null,{"$f":"UPPER(N4)","v":"INTERVENTI DI EMERGENZA IN ALVEO"}]
["Ubicazione Intervento",null,null,null,null,null,null,"Non prevedibile a priori. Procedura da attivare su indicazione dell'UCL."]
[]
[]
[]
[]
[{"$f":"$L$5","v":"RIL.4.2"},null,{"$f":"\"AREE E EDIFICI DISPONIBILI PER \" & UPPER(N5)","v":"AREE E EDIFICI DISPONIBILI PER ALLESTIMENTO AREE DI RADUNO DEI SOCCORRITORI"}]
[{"$f":"[2]RI_4!B141","v":0},null,null,null,null,null,null,{"$f":"IF(INDEX(RI2SOC,1,1)=\"\",\"\",\"- \"&VLOOKUP(INDEX(RI2SOC,1,1),Soccorritori,17))","v":"- Centro Sportivo Comunale - Cod. Stradario 403 - Aviosuperficie"}]
[null,null,null,null,null,null,null,{"$f":"IF(INDEX(RI2SOC,1,2)=\"\",\"\",\"- \"&VLOOKUP(INDEX(RI2SOC,1,2),Soccorritori,17))","v":"- Centro Sportivo Comunale - Cod. Stradario 403 - Ammassamento"}]
[null,null,null,null,null,null,null,{"$f":"IF(INDEX(RI2SOC,1,3)=\"\",\"\",\"- \"&VLOOKUP(INDEX(RI2SOC,1,3),Soccorritori,17))","v":""}]
[]
[]
[]
[]
[]
["PROCEDURA",null,null,null,null,null,null,null,null,null,null,null,null,"PROCEDURE OPERATIVE STANDARD DI RIFERIMENTO (POS)"]
[{"$f":"$L$4","v":"RIL.4.1"},null,null,{"$f":"UPPER(N4)","v":"INTERVENTI DI EMERGENZA IN ALVEO"},null,null,null,null,null,null,null,null,null,9,null,{"$f":"UPPER(VLOOKUP(N27,POS,2))","v":"RIMOZIONE OSTACOLI DA ALVEO"}]
[null,null,null,null,null,null,null,null,null,null,null,null,null,10,null,{"$f":"UPPER(VLOOKUP(N28,POS,2))","v":"PRESERVAZIONE ARGINI"}]
[{"$f":"$L$5","v":"RIL.4.2"},null,null,"AREE DI RADUNO DEI SOCCORRITORI",null,null,null,null,null,null,null,null,null,6,null,{"$f":"UPPER(VLOOKUP(N29,POS,2))","v":"ALLESTIMENTO AREA DI AMMASSAMENTO SOCCORSI"}]